Publisher Label,Publisher URI,"Organisational Unit","Beneficiary Name","Purpose","Amount (£)","Category Internal Name","Payment Date","Irrecoverable VAT Amount"
"Wolverhampton City Council","http://opendatacommunities.org/id/metropolitan-district-council/wolverhampton","Older People Provider Services","Af Blakemore/Blakemore Foodservice","Provisions (Resale)","32.78","R4102","01/04/15","All VAT recoverable"
"Wolverhampton City Council","http://opendatacommunities.org/id/metropolitan-district-council/wolverhampton","Schools","Aldersley High Sch/Aldersley Acad Tr","Grant Payments","2,956.39","R4700","01/04/15","All VAT recoverable"
"Wolverhampton City Council","http://opendatacommunities.org/id/metropolitan-district-council/wolverhampton","Older People Provider Services","Af Blakemore/Blakemore Foodservice","Provisions (Resale)","10.93","R4102","01/04/15","All VAT recoverable"
"Wolverhampton City Council","http://opendatacommunities.org/id/metropolitan-district-council/wolverhampton","Older People Provider Services","Af Blakemore/Blakemore Foodservice","Provisions (Resale)","29.96","R4102","01/04/15","All VAT recoverable"
"Wolverhampton City Council","http://opendatacommunities.org/id/metropolitan-district-council/wolverhampton","Older People Provider Services","Af Blakemore/Blakemore Foodservice","Provisions (Resale)","24.48","R4102","01/04/15","All VAT recoverable"
"Wolverhampton City Council","http://opendatacommunities.org/id/metropolitan-district-council/wolverhampton","Schools","Aldersley High Sch/Aldersley Acad Tr","Grant Payments","9,025.67","R4700","01/04/15","All VAT recoverable"
"Wolverhampton City Council","http://opendatacommunities.org/id/metropolitan-district-council/wolverhampton","Older People Provider Services","Af Blakemore/Blakemore Foodservice","Provisions (Resale)","-24.48","R4102","01/04/15","All VAT recoverable"
"Wolverhampton City Council","http://opendatacommunities.org/id/metropolitan-district-council/wolverhampton","Older People Provider Services","Af Blakemore/Blakemore Foodservice","Provisions (Resale)","20.97","R4102","01/04/15","All VAT recoverable"
"Wolverhampton City Council","http://opendatacommunities.org/id/metropolitan-district-council/wolverhampton","Older People Provider Services","Af Blakemore/Blakemore Foodservice","Provisions (Resale)","256.43","R4102","01/04/15","All VAT recoverable"
"Wolverhampton City Council","http://opendatacommunities.org/id/metropolitan-district-council/wolverhampton","Older People Provider Services","Af Blakemore/Blakemore Foodservice","Provisions (Resale)","-277.40","R4102","01/04/15","All VAT recoverable"
"Wolverhampton City Council","http://opendatacommunities.org/id/metropolitan-district-council/wolverhampton","Central Corporate Budgets","Agilisys Limited","Computing - Purchase of Software","1,850.00","R4531","01/04/15","All VAT recoverable"
"Wolverhampton City Council","http://opendatacommunities.org/id/metropolitan-district-council/wolverhampton","Older People Provider Services","Af Blakemore/Blakemore Foodservice","Provisions (Resale)","277.40","R4102","01/04/15","All VAT recoverable"
"Wolverhampton City Council","http://opendatacommunities.org/id/metropolitan-district-council/wolverhampton","Older People Provider Services","Af Blakemore/Blakemore Foodservice","Provisions (Resale)","10.50","R4102","01/04/15","All VAT recoverable"
"Wolverhampton City Council","http://opendatacommunities.org/id/metropolitan-district-council/wolverhampton","Older People Provider Services","Af Blakemore/Blakemore Foodservice","Provisions (Resale)","13.98","R4102","01/04/15","All VAT recoverable"
"Wolverhampton City Council","http://opendatacommunities.org/id/metropolitan-district-council/wolverhampton","Older People Provider Services","Harveys Of Oldham (Holdings) Limited","Clothing / Uniforms","-86.88","R4201","01/04/15","All VAT recoverable"
"Wolverhampton City Council","http://opendatacommunities.org/id/metropolitan-district-council/wolverhampton","Special Educational Needs","Horizon Care & Education Group Limited","TPP - Independent Schools","12,675.00","R5036","01/04/15","All VAT recoverable"
"Wolverhampton City Council","http://opendatacommunities.org/id/metropolitan-district-council/wolverhampton","HR Advice","Hays Specialist Recruitment Limited","Agency Staff","544.00","R1100","01/04/15","All VAT recoverable"
"Wolverhampton City Council","http://opendatacommunities.org/id/metropolitan-district-council/wolverhampton","HR Advice","Hays Specialist Recruitment Limited","Agency Staff","584.00","R1100","01/04/15","All VAT recoverable"
"Wolverhampton City Council","http://opendatacommunities.org/id/metropolitan-district-council/wolverhampton","Special Educational Needs","Horizon Care & Education Group Limited","TPP - Independent Schools","12,675.00","R5036","01/04/15","All VAT recoverable"
"Wolverhampton City Council","http://opendatacommunities.org/id/metropolitan-district-council/wolverhampton","HR Advice","Hays Specialist Recruitment Limited","Agency Staff","688.08","R1100","01/04/15","All VAT recoverable"
"Wolverhampton City Council","http://opendatacommunities.org/id/metropolitan-district-council/wolverhampton","ICTS","Charterhouse Voice & Data PLC","Computing - Maint Agreements","6,008.40","R4534","01/04/15","All VAT recoverable"
"Wolverhampton City Council","http://opendatacommunities.org/id/metropolitan-district-council/wolverhampton","","Halcrow Group Limited","Construction and Conversion","1,000.00","C1100","01/04/15","All VAT recoverable"
"Wolverhampton City Council","http://opendatacommunities.org/id/metropolitan-district-council/wolverhampton","Looked After Children","Home Tuition Services","Services - Professional Fees","180.00","R4400","01/04/15","All VAT recoverable"
"Wolverhampton City Council","http://opendatacommunities.org/id/metropolitan-district-council/wolverhampton","Looked After Children","Home Tuition Services","Services - Professional Fees","-180.00","R4400","01/04/15","All VAT recoverable"
"Wolverhampton City Council","http://opendatacommunities.org/id/metropolitan-district-council/wolverhampton","Looked After Children","Home Tuition Services","Services - Professional Fees","180.00","R4400","01/04/15","All VAT recoverable"
"Wolverhampton City Council","http://opendatacommunities.org/id/metropolitan-district-council/wolverhampton","Transformation","Cipfa","Training Expenses","768.50","R1650","01/04/15","All VAT recoverable"
"Wolverhampton City Council","http://opendatacommunities.org/id/metropolitan-district-council/wolverhampton","Schools","Cent. Learn. P�Ship Trust T/A Woden","Grant Payments","985.46","R4700","01/04/15","All VAT recoverable"
"Wolverhampton City Council","http://opendatacommunities.org/id/metropolitan-district-council/wolverhampton","Older People Provider Services","Af Blakemore/Blakemore Foodservice","Provisions (Resale)","5.18","R4102","01/04/15","All VAT recoverable"
"Wolverhampton City Council","http://opendatacommunities.org/id/metropolitan-district-council/wolverhampton","Learning Disability Provider","Arjohuntleigh UK","Equipment - Purchase","146.00","R4000","01/04/15","All VAT recoverable"
"Wolverhampton City Council","http://opendatacommunities.org/id/metropolitan-district-council/wolverhampton","Older People Provider Services","Harveys Of Oldham (Holdings) Limited","Clothing / Uniforms","695.00","R4201","01/04/15","All VAT recoverable"
"Wolverhampton City Council","http://opendatacommunities.org/id/metropolitan-district-council/wolverhampton","Special Educational Needs","Horizon Care & Education Group Limited","TPP - Independent Schools","12,675.00","R5036","01/04/15","All VAT recoverable"
"Wolverhampton City Council","http://opendatacommunities.org/id/metropolitan-district-council/wolverhampton","Special Educational Needs","Horizon Care & Education Group Limited","TPP - Independent Schools","12,675.00","R5036","01/04/15","All VAT recoverable"
"Wolverhampton City Council","http://opendatacommunities.org/id/metropolitan-district-council/wolverhampton","Special Educational Needs","Horizon Care & Education Group Limited","TPP - Independent Schools","12,675.00","R5036","01/04/15","All VAT recoverable"
"Wolverhampton City Council","http://opendatacommunities.org/id/metropolitan-district-council/wolverhampton","Older People Provider Services","Af Blakemore/Blakemore Foodservice","Provisions (Resale)","35.85","R4102","01/04/15","All VAT recoverable"
"Wolverhampton City Council","http://opendatacommunities.org/id/metropolitan-district-council/wolverhampton","Culture Arts & Heritage","Central Books","Materials for resale","13.95","R4008","01/04/15","All VAT recoverable"
"Wolverhampton City Council","http://opendatacommunities.org/id/metropolitan-district-council/wolverhampton","Older People Provider Services","Af Blakemore/Blakemore Foodservice","Provisions (Resale)","140.29","R4102","01/04/15","All VAT recoverable"
"Wolverhampton City Council","http://opendatacommunities.org/id/metropolitan-district-council/wolverhampton","Older People Provider Services","Af Blakemore/Blakemore Foodservice","Provisions (Resale)","50.02","R4102","01/04/15","All VAT recoverable"
"Wolverhampton City Council","http://opendatacommunities.org/id/metropolitan-district-council/wolverhampton","Older People Provider Services","Af Blakemore/Blakemore Foodservice","Provisions (Resale)","-50.02","R4102","01/04/15","All VAT recoverable"
"Wolverhampton City Council","http://opendatacommunities.org/id/metropolitan-district-council/wolverhampton","Older People Provider Services","Af Blakemore/Blakemore Foodservice","Provisions (Resale)","14.17","R4102","01/04/15","All VAT recoverable"
"Wolverhampton City Council","http://opendatacommunities.org/id/metropolitan-district-council/wolverhampton","Fleet Services","Greenhous Commercials Limited","Services - Professional Fees","15.00","R4400","01/04/15","All VAT recoverable"
"Wolverhampton City Council","http://opendatacommunities.org/id/metropolitan-district-council/wolverhampton","Fleet Services","Greenhous Commercials Limited","Equipment - Purchase","31.66","R4000","01/04/15","All VAT recoverable"
"Wolverhampton City Council","http://opendatacommunities.org/id/metropolitan-district-council/wolverhampton","Regulatory Services","Initial Projects Limited T/A Enitial","Services - Professional Fees","2,235.21","R4400","01/04/15","All VAT recoverable"
"Wolverhampton City Council","http://opendatacommunities.org/id/metropolitan-district-council/wolverhampton","Children in Need & Child Protection","Anglia Dna Services Limited","Services - Professional Fees","135.00","R4400","01/04/15","All VAT recoverable"
"Wolverhampton City Council","http://opendatacommunities.org/id/metropolitan-district-council/wolverhampton","Children in Need & Child Protection","Anglia Dna Services Limited","Services - Professional Fees","139.00","R4400","01/04/15","All VAT recoverable"
"Wolverhampton City Council","http://opendatacommunities.org/id/metropolitan-district-council/wolverhampton","","Initial Facilities - Water Services","Construction and Conversion","62,195.08","C1100","01/04/15","All VAT recoverable"
"Wolverhampton City Council","http://opendatacommunities.org/id/metropolitan-district-council/wolverhampton","","Ground Investigation & Piling Limited","Construction and Conversion","911.33","C1100","01/04/15","All VAT recoverable"
"Wolverhampton City Council","http://opendatacommunities.org/id/metropolitan-district-council/wolverhampton","","Ground Investigation & Piling Limited","Construction and Conversion","975.40","C1100","01/04/15","All VAT recoverable"
"Wolverhampton City Council","http://opendatacommunities.org/id/metropolitan-district-council/wolverhampton","Housing Revenue Account","Ground Investigation & Piling Limited","Services - Professional Fees","4,106.36","R4400","01/04/15","All VAT recoverable"
"Wolverhampton City Council","http://opendatacommunities.org/id/metropolitan-district-council/wolverhampton","HR Advice","Higgs & Sons Solicitors","Services - Professional Fees","180.00","R4400","01/04/15","All VAT recoverable"
"Wolverhampton City Council","http://opendatacommunities.org/id/metropolitan-district-council/wolverhampton","Estates and Valuations","Ground Investigation & Piling Limited","Services - Professional Fees","308.25","R4400","01/04/15","All VAT recoverable"
"Wolverhampton City Council","http://opendatacommunities.org/id/metropolitan-district-council/wolverhampton","","Ground Investigation & Piling Limited","Construction and Conversion","3,503.83","C1100","01/04/15","All VAT recoverable"
"Wolverhampton City Council","http://opendatacommunities.org/id/metropolitan-district-council/wolverhampton","Older People Provider Services","Af Blakemore/Blakemore Foodservice","Provisions (Resale)","5.18","R4102","01/04/15","All VAT recoverable"
"Wolverhampton City Council","http://opendatacommunities.org/id/metropolitan-district-council/wolverhampton","Schools","Heath Park School (Academy)","Grant Payments","2,956.39","R4700","01/04/15","All VAT recoverable"
"Wolverhampton City Council","http://opendatacommunities.org/id/metropolitan-district-council/wolverhampton","ICTS","Antalis Limited","Stationery","1,125.76","R4308","01/04/15","All VAT recoverable"
"Wolverhampton City Council","http://opendatacommunities.org/id/metropolitan-district-council/wolverhampton","Childrens Centres & Early Years","Heantun Care Children & Families","Grant Payments","14,840.00","R4700","01/04/15","All VAT recoverable"
"Wolverhampton City Council","http://opendatacommunities.org/id/metropolitan-district-council/wolverhampton","Children in Need & Child Protection","Synergy Recruitment Consultancy Ltd","Agency Staff","1,451.88","R1100","01/04/15","All VAT recoverable"
"Wolverhampton City Council","http://opendatacommunities.org/id/metropolitan-district-council/wolverhampton","Fleet Services","Glaze Auto Parts Limited","Equipment - Purchase","14.29","R4000","01/04/15","All VAT recoverable"
"Wolverhampton City Council","http://opendatacommunities.org/id/metropolitan-district-council/wolverhampton","HR Advice","Ian Rigby","Gratuities","125.00","R1402","01/04/15","All VAT recoverable"
"Wolverhampton City Council","http://opendatacommunities.org/id/metropolitan-district-council/wolverhampton","Children in Need & Child Protection","Argos Business Solutions Limited","Equipment - Purchase","50.78","R4000","01/04/15","All VAT recoverable"
"Wolverhampton City Council","http://opendatacommunities.org/id/metropolitan-district-council/wolverhampton","Fleet Services","Guest Motors Limited","Equipment - Purchase","84.60","R4000","01/04/15","All VAT recoverable"
"Wolverhampton City Council","http://opendatacommunities.org/id/metropolitan-district-council/wolverhampton","Fleet Services","Greenhous Commercials Limited","Equipment - Purchase","44.00","R4000","01/04/15","All VAT recoverable"
"Wolverhampton City Council","http://opendatacommunities.org/id/metropolitan-district-council/wolverhampton","Fleet Services","Greenhous Commercials Limited","Equipment - Purchase","425.65","R4000","01/04/15","All VAT recoverable"
"Wolverhampton City Council","http://opendatacommunities.org/id/metropolitan-district-council/wolverhampton","Fleet Services","Greenhous Commercials Limited","Equipment - Purchase","108.74","R4000","01/04/15","All VAT recoverable"
"Wolverhampton City Council","http://opendatacommunities.org/id/metropolitan-district-council/wolverhampton","Fleet Services","Greenhous Commercials Limited","Equipment - Purchase","37.56","R4000","01/04/15","All VAT recoverable"
"Wolverhampton City Council","http://opendatacommunities.org/id/metropolitan-district-council/wolverhampton","Fleet Services","Greenhous Commercials Limited","Services - Professional Fees","45.00","R4400","01/04/15","All VAT recoverable"
"Wolverhampton City Council","http://opendatacommunities.org/id/metropolitan-district-council/wolverhampton","Fleet Services","Greenhous Commercials Limited","Equipment - Purchase","54.00","R4000","01/04/15","All VAT recoverable"
"Wolverhampton City Council","http://opendatacommunities.org/id/metropolitan-district-council/wolverhampton","Fleet Services","Greenhous Commercials Limited","Services - Professional Fees","45.00","R4400","01/04/15","All VAT recoverable"
"Wolverhampton City Council","http://opendatacommunities.org/id/metropolitan-district-council/wolverhampton","Fleet Services","Greenhous Commercials Limited","Services - Professional Fees","15.00","R4400","01/04/15","All VAT recoverable"
"Wolverhampton City Council","http://opendatacommunities.org/id/metropolitan-district-council/wolverhampton","Fleet Services","Guest Motors Limited","Equipment - Purchase","16.75","R4000","01/04/15","All VAT recoverable"
"Wolverhampton City Council","http://opendatacommunities.org/id/metropolitan-district-council/wolverhampton","Fleet Services","Guest Motors Limited","Equipment - Purchase","84.60","R4000","01/04/15","All VAT recoverable"
"Wolverhampton City Council","http://opendatacommunities.org/id/metropolitan-district-council/wolverhampton","Fleet Services","Guest Motors Limited","Services - Professional Fees","80.00","R4400","01/04/15","All VAT recoverable"
"Wolverhampton City Council","http://opendatacommunities.org/id/metropolitan-district-council/wolverhampton","Fleet Services","Air Methods Limited","Equipment - R & M","750.00","R4003","01/04/15","All VAT recoverable"
"Wolverhampton City Council","http://opendatacommunities.org/id/metropolitan-district-council/wolverhampton","Fleet Services","Greenhous Commercials Limited","Services - Professional Fees","68.00","R4400","01/04/15","All VAT recoverable"
"Wolverhampton City Council","http://opendatacommunities.org/id/metropolitan-district-council/wolverhampton","Fleet Services","Greenhous Commercials Limited","Services - Professional Fees","50.00","R4400","01/04/15","All VAT recoverable"
"Wolverhampton City Council","http://opendatacommunities.org/id/metropolitan-district-council/wolverhampton","Fleet Services","Guest Motors Limited","Equipment - Purchase","50.27","R4000","01/04/15","All VAT recoverable"
"Wolverhampton City Council","http://opendatacommunities.org/id/metropolitan-district-council/wolverhampton","Children in Need & Child Protection","Argos Business Solutions Limited","Equipment - Purchase","74.51","R4000","01/04/15","All VAT recoverable"
"Wolverhampton City Council","http://opendatacommunities.org/id/metropolitan-district-council/wolverhampton","Fleet Services","Hyrodec (UK) Limited T/A Oss Group","Equipment - Purchase","255.00","R4000","01/04/15","All VAT recoverable"
"Wolverhampton City Council","http://opendatacommunities.org/id/metropolitan-district-council/wolverhampton","Schools","Charterhouse Voice & Data PLC","Computing - Maint Agreements","277.50","R4534","01/04/15","All VAT recoverable"
"Wolverhampton City Council","http://opendatacommunities.org/id/metropolitan-district-council/wolverhampton","HR Advice","HSS Hire Service Group Limited","Training Expenses","140.68","R1650","01/04/15","All VAT recoverable"
"Wolverhampton City Council","http://opendatacommunities.org/id/metropolitan-district-council/wolverhampton","HR Advice","HSS Hire Service Group Limited","Training Expenses","-140.68","R1650","01/04/15","All VAT recoverable"
"Wolverhampton City Council","http://opendatacommunities.org/id/metropolitan-district-council/wolverhampton","HR Advice","HSS Hire Service Group Limited","Training Expenses","140.68","R1650","01/04/15","All VAT recoverable"
"Wolverhampton City Council","http://opendatacommunities.org/id/metropolitan-district-council/wolverhampton","Youth Offending","Goldthorn Youth Gym","Room Hire","88.00","R2201","01/04/15","All VAT recoverable"
"Wolverhampton City Council","http://opendatacommunities.org/id/metropolitan-district-council/wolverhampton","Children in Need & Child Protection","Argos Business Solutions Limited","Equipment - Purchase","-3.29","R4000","01/04/15","All VAT recoverable"
"Wolverhampton City Council","http://opendatacommunities.org/id/metropolitan-district-council/wolverhampton","Children in Need & Child Protection","Argos Business Solutions Limited","Equipment - Purchase","-47.49","R4000","01/04/15","All VAT recoverable"
"Wolverhampton City Council","http://opendatacommunities.org/id/metropolitan-district-council/wolverhampton","Children in Need & Child Protection","Argos Business Solutions Limited","Equipment - Purchase","-74.51","R4000","01/04/15","All VAT recoverable"
"Wolverhampton City Council","http://opendatacommunities.org/id/metropolitan-district-council/wolverhampton","Childrens Centres & Early Years","All Saints Action Network Limited","Grant Payments","12,787.50","R4700","01/04/15","All VAT recoverable"
"Wolverhampton City Council","http://opendatacommunities.org/id/metropolitan-district-council/wolverhampton","Youth Offending","Goldthorn Youth Gym","Room Hire","88.00","R2201","01/04/15","All VAT recoverable"
"Wolverhampton City Council","http://opendatacommunities.org/id/metropolitan-district-council/wolverhampton","HR Advice","Hays Specialist Recruitment Limited","Agency Staff","651.60","R1100","01/04/15","All VAT recoverable"
"Wolverhampton City Council","http://opendatacommunities.org/id/metropolitan-district-council/wolverhampton","Fleet Services","Glaze Auto Parts Limited","Equipment - Purchase","31.71","R4000","01/04/15","All VAT recoverable"
"Wolverhampton City Council","http://opendatacommunities.org/id/metropolitan-district-council/wolverhampton","Fleet Services","Glaze Auto Parts Limited","Equipment - Purchase","3.16","R4000","01/04/15","All VAT recoverable"
"Wolverhampton City Council","http://opendatacommunities.org/id/metropolitan-district-council/wolverhampton","Fleet Services","Glaze Auto Parts Limited","Equipment - Purchase","2.25","R4000","01/04/15","All VAT recoverable"
"Wolverhampton City Council","http://opendatacommunities.org/id/metropolitan-district-council/wolverhampton","Fleet Services","Glaze Auto Parts Limited","Equipment - Purchase","47.24","R4000","01/04/15","All VAT recoverable"
"Wolverhampton City Council","http://opendatacommunities.org/id/metropolitan-district-council/wolverhampton","Transformation","Cipfa","Training Expenses","-768.50","R1650","01/04/15","All VAT recoverable"
"Wolverhampton City Council","http://opendatacommunities.org/id/metropolitan-district-council/wolverhampton","Fleet Services","Glaze Auto Parts Limited","Equipment - Purchase","3.20","R4000","01/04/15","All VAT recoverable"
"Wolverhampton City Council","http://opendatacommunities.org/id/metropolitan-district-council/wolverhampton","Fleet Services","Glaze Auto Parts Limited","Equipment - Purchase","23.98","R4000","01/04/15","All VAT recoverable"
"Wolverhampton City Council","http://opendatacommunities.org/id/metropolitan-district-council/wolverhampton","Fleet Services","Glaze Auto Parts Limited","Equipment - Purchase","29.94","R4000","01/04/15","All VAT recoverable"
"Wolverhampton City Council","http://opendatacommunities.org/id/metropolitan-district-council/wolverhampton","Older People Provider Services","Af Blakemore/Blakemore Foodservice","Provisions (Resale)","73.14","R4102","01/04/15","All VAT recoverable"
"Wolverhampton City Council","http://opendatacommunities.org/id/metropolitan-district-council/wolverhampton","Fleet Services","Glaze Auto Parts Limited","Equipment - Purchase","17.60","R4000","01/04/15","All VAT recoverable"
"Wolverhampton City Council","http://opendatacommunities.org/id/metropolitan-district-council/wolverhampton","Fleet Services","Glaze Auto Parts Limited","Equipment - Purchase","14.57","R4000","01/04/15","All VAT recoverable"
"Wolverhampton City Council","http://opendatacommunities.org/id/metropolitan-district-council/wolverhampton","Fleet Services","Glaze Auto Parts Limited","Equipment - Purchase","18.88","R4000","01/04/15","All VAT recoverable"
"Wolverhampton City Council","http://opendatacommunities.org/id/metropolitan-district-council/wolverhampton","Fleet Services","Glaze Auto Parts Limited","Equipment - Purchase","37.69","R4000","01/04/15","All VAT recoverable"
"Wolverhampton City Council","http://opendatacommunities.org/id/metropolitan-district-council/wolverhampton","Fleet Services","Glaze Auto Parts Limited","Equipment - Purchase","12.31","R4000","01/04/15","All VAT recoverable"
"Wolverhampton City Council","http://opendatacommunities.org/id/metropolitan-district-council/wolverhampton","Fleet Services","Glaze Auto Parts Limited","Equipment - Purchase","31.47","R4000","01/04/15","All VAT recoverable"
"Wolverhampton City Council","http://opendatacommunities.org/id/metropolitan-district-council/wolverhampton","Fleet Services","Glaze Auto Parts Limited","Equipment - Purchase","31.71","R4000","01/04/15","All VAT recoverable"
"Wolverhampton City Council","http://opendatacommunities.org/id/metropolitan-district-council/wolverhampton","Fleet Services","Glaze Auto Parts Limited","Equipment - Purchase","175.00","R4000","01/04/15","All VAT recoverable"
"Wolverhampton City Council","http://opendatacommunities.org/id/metropolitan-district-council/wolverhampton","Fleet Services","Glaze Auto Parts Limited","Equipment - Purchase","3.17","R4000","01/04/15","All VAT recoverable"
"Wolverhampton City Council","http://opendatacommunities.org/id/metropolitan-district-council/wolverhampton","Older People Provider Services","Af Blakemore/Blakemore Foodservice","Provisions (Resale)","88.79","R4102","01/04/15","All VAT recoverable"
"Wolverhampton City Council","http://opendatacommunities.org/id/metropolitan-district-council/wolverhampton","Older People Provider Services","Af Blakemore/Blakemore Foodservice","Provisions (Resale)","191.21","R4102","01/04/15","All VAT recoverable"
"Wolverhampton City Council","http://opendatacommunities.org/id/metropolitan-district-council/wolverhampton","Fleet Services","Glaze Auto Parts Limited","Equipment - Purchase","53.76","R4000","01/04/15","All VAT recoverable"
"Wolverhampton City Council","http://opendatacommunities.org/id/metropolitan-district-council/wolverhampton","Fleet Services","Glaze Auto Parts Limited","Equipment - Purchase","14.29","R4000","01/04/15","All VAT recoverable"
"Wolverhampton City Council","http://opendatacommunities.org/id/metropolitan-district-council/wolverhampton","Older People Provider Services","Af Blakemore/Blakemore Foodservice","Provisions (Resale)","-280.00","R4102","01/04/15","All VAT recoverable"
"Wolverhampton City Council","http://opendatacommunities.org/id/metropolitan-district-council/wolverhampton","Older People Provider Services","Af Blakemore/Blakemore Foodservice","Provisions (Resale)","280.00","R4102","01/04/15","All VAT recoverable"
"Wolverhampton City Council","http://opendatacommunities.org/id/metropolitan-district-council/wolverhampton","Older People Provider Services","Af Blakemore/Blakemore Foodservice","Provisions (Resale)","-103.14","R4102","01/04/15","All VAT recoverable"
"Wolverhampton City Council","http://opendatacommunities.org/id/metropolitan-district-council/wolverhampton","Fleet Services","Glaze Auto Parts Limited","Equipment - Purchase","6.80","R4000","01/04/15","All VAT recoverable"
"Wolverhampton City Council","http://opendatacommunities.org/id/metropolitan-district-council/wolverhampton","Fleet Services","Glaze Auto Parts Limited","Equipment - Purchase","15.94","R4000","01/04/15","All VAT recoverable"
"Wolverhampton City Council","http://opendatacommunities.org/id/metropolitan-district-council/wolverhampton","Older People Provider Services","Af Blakemore/Blakemore Foodservice","Provisions (Resale)","-5.26","R4102","01/04/15","All VAT recoverable"
"Wolverhampton City Council","http://opendatacommunities.org/id/metropolitan-district-council/wolverhampton","Learning Disability Provider","Af Blakemore/Blakemore Foodservice","Provisions (Resale)","103.28","R4102","01/04/15","All VAT recoverable"
"Wolverhampton City Council","http://opendatacommunities.org/id/metropolitan-district-council/wolverhampton","Culture Arts & Heritage","Af Blakemore/Blakemore Foodservice","Provisions (Resale)","-357.66","R4102","01/04/15","All VAT recoverable"
"Wolverhampton City Council","http://opendatacommunities.org/id/metropolitan-district-council/wolverhampton","Adult Education","Chambers Electrical (Wolverhampton) Ltd","R&M - Departmental planned (external)","89.50","R2001","01/04/15","All VAT recoverable"
"Wolverhampton City Council","http://opendatacommunities.org/id/metropolitan-district-council/wolverhampton","Adult Education","Chambers Electrical (Wolverhampton) Ltd","R&M - Departmental planned (external)","596.00","R2001","01/04/15","All VAT recoverable"
"Wolverhampton City Council","http://opendatacommunities.org/id/metropolitan-district-council/wolverhampton","Culture Arts & Heritage","Af Blakemore/Blakemore Foodservice","Provisions (Resale)","357.66","R4102","01/04/15","All VAT recoverable"
"Wolverhampton City Council","http://opendatacommunities.org/id/metropolitan-district-council/wolverhampton","Independent Living Service","Aidapt Bathrooms Limited","Equipment - Purchase","1,194.00","R4000","01/04/15","All VAT recoverable"
"Wolverhampton City Council","http://opendatacommunities.org/id/metropolitan-district-council/wolverhampton","Street Lighting","Century Electrical Wholesale Limited","Materials","111.02","R4007","01/04/15","All VAT recoverable"
"Wolverhampton City Council","http://opendatacommunities.org/id/metropolitan-district-council/wolverhampton","Fleet Services","Glaze Auto Parts Limited","Equipment - Purchase","21.06","R4000","01/04/15","All VAT recoverable"
"Wolverhampton City Council","http://opendatacommunities.org/id/metropolitan-district-council/wolverhampton","Fleet Services","Glaze Auto Parts Limited","Equipment - Purchase","9.30","R4000","01/04/15","All VAT recoverable"
"Wolverhampton City Council","http://opendatacommunities.org/id/metropolitan-district-council/wolverhampton","Older People Provider Services","Af Blakemore/Blakemore Foodservice","Provisions (Resale)","207.01","R4102","01/04/15","All VAT recoverable"
"Wolverhampton City Council","http://opendatacommunities.org/id/metropolitan-district-council/wolverhampton","Environmental Maintenance","Hags-Smp Limited Rss Playmakers","Equipment - R & M","63.75","R4003","01/04/15","All VAT recoverable"
"Wolverhampton City Council","http://opendatacommunities.org/id/metropolitan-district-council/wolverhampton","Environmental Maintenance","Hags-Smp Limited Rss Playmakers","Equipment - R & M","59.25","R4003","01/04/15","All VAT recoverable"
"Wolverhampton City Council","http://opendatacommunities.org/id/metropolitan-district-council/wolverhampton","Environmental Maintenance","Hags-Smp Limited Rss Playmakers","Equipment - R & M","1,141.85","R4003","01/04/15","All VAT recoverable"
"Wolverhampton City Council","http://opendatacommunities.org/id/metropolitan-district-council/wolverhampton","Environmental Maintenance","Hags-Smp Limited Rss Playmakers","Equipment - R & M","142.46","R4003","01/04/15","All VAT recoverable"
"Wolverhampton City Council","http://opendatacommunities.org/id/metropolitan-district-council/wolverhampton","Environmental Maintenance","Hags-Smp Limited Rss Playmakers","Equipment - R & M","23.52","R4003","01/04/15","All VAT recoverable"
"Wolverhampton City Council","http://opendatacommunities.org/id/metropolitan-district-council/wolverhampton","Environmental Maintenance","Hags-Smp Limited Rss Playmakers","Equipment - R & M","120.00","R4003","01/04/15","All VAT recoverable"
"Wolverhampton City Council","http://opendatacommunities.org/id/metropolitan-district-council/wolverhampton","Environmental Maintenance","Hags-Smp Limited Rss Playmakers","Equipment - R & M","331.28","R4003","01/04/15","All VAT recoverable"
"Wolverhampton City Council","http://opendatacommunities.org/id/metropolitan-district-council/wolverhampton","Environmental Maintenance","Hags-Smp Limited Rss Playmakers","Equipment - R & M","45.00","R4003","01/04/15","All VAT recoverable"
"Wolverhampton City Council","http://opendatacommunities.org/id/metropolitan-district-council/wolverhampton","Environmental Maintenance","Hags-Smp Limited Rss Playmakers","Equipment - R & M","11.40","R4003","01/04/15","All VAT recoverable"
"Wolverhampton City Council","http://opendatacommunities.org/id/metropolitan-district-council/wolverhampton","Environmental Maintenance","Hags-Smp Limited Rss Playmakers","Equipment - R & M","23.75","R4003","01/04/15","All VAT recoverable"
"Wolverhampton City Council","http://opendatacommunities.org/id/metropolitan-district-council/wolverhampton","Environmental Maintenance","Hags-Smp Limited Rss Playmakers","Equipment - R & M","-54.40","R4003","01/04/15","All VAT recoverable"
"Wolverhampton City Council","http://opendatacommunities.org/id/metropolitan-district-council/wolverhampton","Environmental Maintenance","Hags-Smp Limited Rss Playmakers","Equipment - R & M","275.50","R4003","01/04/15","All VAT recoverable"
"Wolverhampton City Council","http://opendatacommunities.org/id/metropolitan-district-council/wolverhampton","Environmental Maintenance","Hags-Smp Limited Rss Playmakers","Equipment - R & M","185.79","R4003","01/04/15","All VAT recoverable"
"Wolverhampton City Council","http://opendatacommunities.org/id/metropolitan-district-council/wolverhampton","Environmental Maintenance","Hags-Smp Limited Rss Playmakers","Equipment - R & M","75.00","R4003","01/04/15","All VAT recoverable"
"Wolverhampton City Council","http://opendatacommunities.org/id/metropolitan-district-council/wolverhampton","Environmental Maintenance","Hags-Smp Limited Rss Playmakers","Equipment - R & M","-41.48","R4003","01/04/15","All VAT recoverable"
"Wolverhampton City Council","http://opendatacommunities.org/id/metropolitan-district-council/wolverhampton","Older People Provider Services","Af Blakemore/Blakemore Foodservice","Provisions (Resale)","358.39","R4102","01/04/15","All VAT recoverable"
"Wolverhampton City Council","http://opendatacommunities.org/id/metropolitan-district-council/wolverhampton","Environmental Maintenance","Hags-Smp Limited Rss Playmakers","Equipment - R & M","41.48","R4003","01/04/15","All VAT recoverable"
"Wolverhampton City Council","http://opendatacommunities.org/id/metropolitan-district-council/wolverhampton","Older People Provider Services","Af Blakemore/Blakemore Foodservice","Provisions (Resale)","79.34","R4102","01/04/15","All VAT recoverable"
"Wolverhampton City Council","http://opendatacommunities.org/id/metropolitan-district-council/wolverhampton","Older People Provider Services","Af Blakemore/Blakemore Foodservice","Provisions (Resale)","6.93","R4102","01/04/15","All VAT recoverable"
"Wolverhampton City Council","http://opendatacommunities.org/id/metropolitan-district-council/wolverhampton","Older People Provider Services","Af Blakemore/Blakemore Foodservice","Provisions (Resale)","462.56","R4102","01/04/15","All VAT recoverable"
"Wolverhampton City Council","http://opendatacommunities.org/id/metropolitan-district-council/wolverhampton","Older People Provider Services","Af Blakemore/Blakemore Foodservice","Provisions (Resale)","-462.56","R4102","01/04/15","All VAT recoverable"
"Wolverhampton City Council","http://opendatacommunities.org/id/metropolitan-district-council/wolverhampton","Looked After Children","Als-Holdings Limited T/A Ac Education","Training Expenses","7,300.00","R1650","01/04/15","All VAT recoverable"
"Wolverhampton City Council","http://opendatacommunities.org/id/metropolitan-district-council/wolverhampton","Older People Provider Services","Af Blakemore/Blakemore Foodservice","Provisions (Resale)","397.75","R4102","01/04/15","All VAT recoverable"
"Wolverhampton City Council","http://opendatacommunities.org/id/metropolitan-district-council/wolverhampton","Older People Provider Services","Af Blakemore/Blakemore Foodservice","Provisions (Resale)","64.81","R4102","01/04/15","All VAT recoverable"
"Wolverhampton City Council","http://opendatacommunities.org/id/metropolitan-district-council/wolverhampton","Culture Arts & Heritage","Af Blakemore/Blakemore Foodservice","Provisions (Resale)","220.29","R4102","01/04/15","All VAT recoverable"
"Wolverhampton City Council","http://opendatacommunities.org/id/metropolitan-district-council/wolverhampton","Culture Arts & Heritage","Af Blakemore/Blakemore Foodservice","Provisions (Resale)","137.37","R4102","01/04/15","All VAT recoverable"
"Wolverhampton City Council","http://opendatacommunities.org/id/metropolitan-district-council/wolverhampton","Older People Provider Services","Af Blakemore/Blakemore Foodservice","Provisions (Resale)","-436.17","R4102","01/04/15","All VAT recoverable"
"Wolverhampton City Council","http://opendatacommunities.org/id/metropolitan-district-council/wolverhampton","Older People Provider Services","Af Blakemore/Blakemore Foodservice","Provisions (Resale)","436.17","R4102","01/04/15","All VAT recoverable"
"Wolverhampton City Council","http://opendatacommunities.org/id/metropolitan-district-council/wolverhampton","Fleet Services","Glaze Auto Parts Limited","Equipment - Purchase","6.87","R4000","01/04/15","All VAT recoverable"
"Wolverhampton City Council","http://opendatacommunities.org/id/metropolitan-district-council/wolverhampton","Fleet Services","Glaze Auto Parts Limited","Equipment - Purchase","60.80","R4000","01/04/15","All VAT recoverable"
"Wolverhampton City Council","http://opendatacommunities.org/id/metropolitan-district-council/wolverhampton","Fleet Services","Glaze Auto Parts Limited","Equipment - Purchase","72.30","R4000","01/04/15","All VAT recoverable"
"Wolverhampton City Council","http://opendatacommunities.org/id/metropolitan-district-council/wolverhampton","Fleet Services","Glaze Auto Parts Limited","Equipment - Purchase","3.20","R4000","01/04/15","All VAT recoverable"
"Wolverhampton City Council","http://opendatacommunities.org/id/metropolitan-district-council/wolverhampton","Fleet Services","Glaze Auto Parts Limited","Equipment - Purchase","26.52","R4000","01/04/15","All VAT recoverable"
"Wolverhampton City Council","http://opendatacommunities.org/id/metropolitan-district-council/wolverhampton","Fleet Services","Glaze Auto Parts Limited","Equipment - Purchase","41.25","R4000","01/04/15","All VAT recoverable"
"Wolverhampton City Council","http://opendatacommunities.org/id/metropolitan-district-council/wolverhampton","Fleet Services","Glaze Auto Parts Limited","Equipment - Purchase","6.72","R4000","01/04/15","All VAT recoverable"
"Wolverhampton City Council","http://opendatacommunities.org/id/metropolitan-district-council/wolverhampton","Fleet Services","Glaze Auto Parts Limited","Equipment - Purchase","483.80","R4000","01/04/15","All VAT recoverable"
"Wolverhampton City Council","http://opendatacommunities.org/id/metropolitan-district-council/wolverhampton","Transformation","Cipfa","Training Expenses","768.50","R1650","01/04/15","All VAT recoverable"
"Wolverhampton City Council","http://opendatacommunities.org/id/metropolitan-district-council/wolverhampton","Cleaning & Caretaking Service","Hilton Main Construction Limited","R&M - Departmental response (external)","1,250.00","R2003","01/04/15","All VAT recoverable"
"Wolverhampton City Council","http://opendatacommunities.org/id/metropolitan-district-council/wolverhampton","Customer Services","Angel Springs Limited","Provisions (Not for resale)","10.30","R4101","01/04/15","All VAT recoverable"
"Wolverhampton City Council","http://opendatacommunities.org/id/metropolitan-district-council/wolverhampton","Older People Provider Services","Af Blakemore/Blakemore Foodservice","Provisions (Resale)","145.26","R4102","01/04/15","All VAT recoverable"
"Wolverhampton City Council","http://opendatacommunities.org/id/metropolitan-district-council/wolverhampton","Mental Health Provider","Angel Springs Limited","Provisions (Not for resale)","9.72","R4101","01/04/15","All VAT recoverable"
"Wolverhampton City Council","http://opendatacommunities.org/id/metropolitan-district-council/wolverhampton","Fleet Services","Glaze Auto Parts Limited","Equipment - Purchase","27.56","R4000","01/04/15","All VAT recoverable"
"Wolverhampton City Council","http://opendatacommunities.org/id/metropolitan-district-council/wolverhampton","Parking Services","Hilton Main Construction Limited","R&M - Departmental response (external)","246.28","R2003","01/04/15","All VAT recoverable"
"Wolverhampton City Council","http://opendatacommunities.org/id/metropolitan-district-council/wolverhampton","Older People Provider Services","Af Blakemore/Blakemore Foodservice","Provisions (Resale)","464.93","R4102","01/04/15","All VAT recoverable"
"Wolverhampton City Council","http://opendatacommunities.org/id/metropolitan-district-council/wolverhampton","Highways Maintenance","Hilton Main Construction Limited","R&M - Departmental response (external)","7,812.00","R2003","01/04/15","All VAT recoverable"
"Wolverhampton City Council","http://opendatacommunities.org/id/metropolitan-district-council/wolverhampton","Engineering & Civic Centre","Angel Springs Limited","R&M - Departmental planned (internal)","156.40","R2000","01/04/15","All VAT recoverable"
"Wolverhampton City Council","http://opendatacommunities.org/id/metropolitan-district-council/wolverhampton","Highways Maintenance","Hilton Main Construction Limited","R&M - Departmental response (external)","1,028.95","R2003","01/04/15","All VAT recoverable"
"Wolverhampton City Council","http://opendatacommunities.org/id/metropolitan-district-council/wolverhampton","Looked After Children","GO Carz","Client Transport","542.00","R3042","01/04/15","All VAT recoverable"
"Wolverhampton City Council","http://opendatacommunities.org/id/metropolitan-district-council/wolverhampton","Highways Maintenance","Hilton Main Construction Limited","R&M - Departmental response (external)","4,750.00","R2003","01/04/15","All VAT recoverable"
"Wolverhampton City Council","http://opendatacommunities.org/id/metropolitan-district-council/wolverhampton","Looked After Children","GO Carz","Client Transport","12.40","R3042","01/04/15","All VAT recoverable"
"Wolverhampton City Council","http://opendatacommunities.org/id/metropolitan-district-council/wolverhampton","Fleet Services","Hilton Main Construction Limited","Hire of Vehicles","1,300.00","R3200","01/04/15","All VAT recoverable"
"Wolverhampton City Council","http://opendatacommunities.org/id/metropolitan-district-council/wolverhampton","Fleet Services","Hilton Main Construction Limited","Hire of Vehicles","1,300.00","R3200","01/04/15","All VAT recoverable"
"Wolverhampton City Council","http://opendatacommunities.org/id/metropolitan-district-council/wolverhampton","","Hilton Main Construction Limited","Construction and Conversion","9,165.60","C1100","01/04/15","All VAT recoverable"
"Wolverhampton City Council","http://opendatacommunities.org/id/metropolitan-district-council/wolverhampton","Environmental Maintenance","Hilton Main Construction Limited","Services - Professional Fees","13,600.00","R4400","01/04/15","All VAT recoverable"
"Wolverhampton City Council","http://opendatacommunities.org/id/metropolitan-district-council/wolverhampton","Cleaning & Caretaking Service","Hilton Main Construction Limited","R&M - Departmental response (external)","11,760.30","R2003","01/04/15","All VAT recoverable"
"Wolverhampton City Council","http://opendatacommunities.org/id/metropolitan-district-council/wolverhampton","Cleaning & Caretaking Service","Hilton Main Construction Limited","R&M - Departmental response (external)","1,282.00","R2003","01/04/15","All VAT recoverable"
"Wolverhampton City Council","http://opendatacommunities.org/id/metropolitan-district-council/wolverhampton","Looked After Children","GO Carz","Client Transport","-542.00","R3042","01/04/15","All VAT recoverable"
"Wolverhampton City Council","http://opendatacommunities.org/id/metropolitan-district-council/wolverhampton","Looked After Children","GO Carz","Client Transport","542.00","R3042","01/04/15","All VAT recoverable"
"Wolverhampton City Council","http://opendatacommunities.org/id/metropolitan-district-council/wolverhampton","Highways Maintenance","Hilton Main Construction Limited","R&M - Departmental response (external)","9,653.09","R2003","01/04/15","All VAT recoverable"
"Wolverhampton City Council","http://opendatacommunities.org/id/metropolitan-district-council/wolverhampton","Parking Services","Hilton Main Construction Limited","R&M - Departmental response (external)","2,498.50","R2003","01/04/15","All VAT recoverable"
"Wolverhampton City Council","http://opendatacommunities.org/id/metropolitan-district-council/wolverhampton","Looked After Children","GO Carz","Client Transport","12.40","R3042","01/04/15","All VAT recoverable"
"Wolverhampton City Council","http://opendatacommunities.org/id/metropolitan-district-council/wolverhampton","Looked After Children","GO Carz","Client Transport","-12.40","R3042","01/04/15","All VAT recoverable"
"Wolverhampton City Council","http://opendatacommunities.org/id/metropolitan-district-council/wolverhampton","Cleaning & Caretaking Service","Hilton Main Construction Limited","R&M - Departmental response (external)","1,250.00","R2003","01/04/15","All VAT recoverable"
"Wolverhampton City Council","http://opendatacommunities.org/id/metropolitan-district-council/wolverhampton","Customer Services","Angel Springs Limited","Provisions (Not for resale)","19.44","R4101","01/04/15","All VAT recoverable"
"Wolverhampton City Council","http://opendatacommunities.org/id/metropolitan-district-council/wolverhampton","Older People Provider Services","Af Blakemore/Blakemore Foodservice","Provisions (Resale)","403.39","R4102","01/04/15","All VAT recoverable"
"Wolverhampton City Council","http://opendatacommunities.org/id/metropolitan-district-council/wolverhampton","Learning Disability Provider","Eden Brown Limited","Agency Staff","129.04","R1100","01/04/15","All VAT recoverable"
"Wolverhampton City Council","http://opendatacommunities.org/id/metropolitan-district-council/wolverhampton","","Jacobs U.K.Limited","Construction and Conversion","191.64","C1100","01/04/15","All VAT recoverable"
"Wolverhampton City Council","http://opendatacommunities.org/id/metropolitan-district-council/wolverhampton","Learning Disability Provider","Eden Brown Limited","Agency Staff","629.07","R1100","01/04/15","All VAT recoverable"
"Wolverhampton City Council","http://opendatacommunities.org/id/metropolitan-district-council/wolverhampton","Social Inclusion & Play Service","Adt Fire And Security PLC","Fixtures and Fittings - R&M","103.00","R2502","01/04/15","All VAT recoverable"
"Wolverhampton City Council","http://opendatacommunities.org/id/metropolitan-district-council/wolverhampton","Children in Need & Child Protection","Eden Brown Limited","Agency Staff","-1,330.15","R1100","01/04/15","All VAT recoverable"
"Wolverhampton City Council","http://opendatacommunities.org/id/metropolitan-district-council/wolverhampton","","Jacobs U.K.Limited","Construction and Conversion","135.27","C1100","01/04/15","All VAT recoverable"
"Wolverhampton City Council","http://opendatacommunities.org/id/metropolitan-district-council/wolverhampton","Children in Need & Child Protection","Eden Brown Limited","Agency Staff","-1,330.15","R1100","01/04/15","All VAT recoverable"
"Wolverhampton City Council","http://opendatacommunities.org/id/metropolitan-district-council/wolverhampton","Children in Need & Child Protection","Eden Brown Limited","Agency Staff","-1,330.15","R1100","01/04/15","All VAT recoverable"
"Wolverhampton City Council","http://opendatacommunities.org/id/metropolitan-district-council/wolverhampton","Property Services","Jacobs U.K.Limited","R&M - Departmental planned (external)","7,309.00","R2001","01/04/15","All VAT recoverable"
"Wolverhampton City Council","http://opendatacommunities.org/id/metropolitan-district-council/wolverhampton","Property Services","Jacobs U.K.Limited","Services - Professional Fees","95.82","R4400","01/04/15","All VAT recoverable"
"Wolverhampton City Council","http://opendatacommunities.org/id/metropolitan-district-council/wolverhampton","","Jacobs U.K.Limited","Construction and Conversion","383.28","C1100","01/04/15","All VAT recoverable"
"Wolverhampton City Council","http://opendatacommunities.org/id/metropolitan-district-council/wolverhampton","Childrens Centres & Early Years","Caterpillars Nursery Co UK Limited","Grant Payments","2,137.50","R4700","01/04/15","All VAT recoverable"
"Wolverhampton City Council","http://opendatacommunities.org/id/metropolitan-district-council/wolverhampton","Parking Services","Chipside Limited","Computing - Purchase of Hardware","160.00","R4530","01/04/15","All VAT recoverable"
"Wolverhampton City Council","http://opendatacommunities.org/id/metropolitan-district-council/wolverhampton","","Jacobs U.K.Limited","Construction and Conversion","191.64","C1100","01/04/15","All VAT recoverable"
"Wolverhampton City Council","http://opendatacommunities.org/id/metropolitan-district-council/wolverhampton","Children in Need & Child Protection","Eden Brown Limited","Agency Staff","-1,330.15","R1100","01/04/15","All VAT recoverable"
"Wolverhampton City Council","http://opendatacommunities.org/id/metropolitan-district-council/wolverhampton","Children in Need & Child Protection","Eden Brown Limited","Agency Staff","-1,330.15","R1100","01/04/15","All VAT recoverable"
"Wolverhampton City Council","http://opendatacommunities.org/id/metropolitan-district-council/wolverhampton","Learning Disability Provider","Eden Brown Limited","Agency Staff","596.81","R1100","01/04/15","All VAT recoverable"
"Wolverhampton City Council","http://opendatacommunities.org/id/metropolitan-district-council/wolverhampton","Housing Revenue Account","Interia Products Limited-Xtradingpos","Equipment - Purchase","196.50","R4000","01/04/15","All VAT recoverable"
"Wolverhampton City Council","http://opendatacommunities.org/id/metropolitan-district-council/wolverhampton","Children in Need & Child Protection","Eden Brown Limited","Agency Staff","-1,330.15","R1100","01/04/15","All VAT recoverable"
"Wolverhampton City Council","http://opendatacommunities.org/id/metropolitan-district-council/wolverhampton","Children in Need & Child Protection","Eden Brown Limited","Agency Staff","-1,330.15","R1100","01/04/15","All VAT recoverable"
"Wolverhampton City Council","http://opendatacommunities.org/id/metropolitan-district-council/wolverhampton","Fleet Services","Access Tail Lift Services Limited","Services - Professional Fees","57.44","R4400","01/04/15","All VAT recoverable"
"Wolverhampton City Council","http://opendatacommunities.org/id/metropolitan-district-council/wolverhampton","Children in Need & Child Protection","Eden Brown Limited","Agency Staff","-1,330.15","R1100","01/04/15","All VAT recoverable"
"Wolverhampton City Council","http://opendatacommunities.org/id/metropolitan-district-council/wolverhampton","Transportation","Chubb Fire & Security Limited","Equipment - R & M","218.63","R4003","01/04/15","All VAT recoverable"
"Wolverhampton City Council","http://opendatacommunities.org/id/metropolitan-district-council/wolverhampton","Welfare Rights & Financial Assessment","Eden Brown Limited","Agency Staff","-1,330.15","R1100","01/04/15","All VAT recoverable"
"Wolverhampton City Council","http://opendatacommunities.org/id/metropolitan-district-council/wolverhampton","Parking Services","Chipside Limited","Computing - Purchase of Hardware","106.50","R4530","01/04/15","All VAT recoverable"
"Wolverhampton City Council","http://opendatacommunities.org/id/metropolitan-district-council/wolverhampton","Fleet Services","Flying Penguin Enterprises","Equipment - Purchase","168.76","R4000","01/04/15","All VAT recoverable"
"Wolverhampton City Council","http://opendatacommunities.org/id/metropolitan-district-council/wolverhampton","Children in Need & Child Protection","Eden Brown Limited","Agency Staff","-1,330.15","R1100","01/04/15","All VAT recoverable"
"Wolverhampton City Council","http://opendatacommunities.org/id/metropolitan-district-council/wolverhampton","Fleet Services","Flying Penguin Enterprises","Equipment - Purchase","107.74","R4000","01/04/15","All VAT recoverable"
"Wolverhampton City Council","http://opendatacommunities.org/id/metropolitan-district-council/wolverhampton","Children in Need & Child Protection","Eden Brown Limited","Agency Staff","-1,330.15","R1100","01/04/15","All VAT recoverable"
"Wolverhampton City Council","http://opendatacommunities.org/id/metropolitan-district-council/wolverhampton","Buisness Continuity & Emergency Planning","Geeky Creative","Subscriptions","200.00","R4701","01/04/15","All VAT recoverable"
"Wolverhampton City Council","http://opendatacommunities.org/id/metropolitan-district-council/wolverhampton","Children in Need & Child Protection","Eden Brown Limited","Agency Staff","-1,330.15","R1100","01/04/15","All VAT recoverable"
"Wolverhampton City Council","http://opendatacommunities.org/id/metropolitan-district-council/wolverhampton","Fleet Services","Flying Penguin Enterprises","Equipment - Purchase","174.52","R4000","01/04/15","All VAT recoverable"
"Wolverhampton City Council","http://opendatacommunities.org/id/metropolitan-district-council/wolverhampton","Fleet Services","Flying Penguin Enterprises","Equipment - Purchase","190.04","R4000","01/04/15","All VAT recoverable"
"Wolverhampton City Council","http://opendatacommunities.org/id/metropolitan-district-council/wolverhampton","Learning Disability Provider","Eden Brown Limited","Agency Staff","241.95","R1100","01/04/15","All VAT recoverable"
"Wolverhampton City Council","http://opendatacommunities.org/id/metropolitan-district-council/wolverhampton","Schools","BCC Mac T/A The Giffard Catholic","Grant Payments","1,970.93","R4700","01/04/15","All VAT recoverable"
"Wolverhampton City Council","http://opendatacommunities.org/id/metropolitan-district-council/wolverhampton","Children in Need & Child Protection","Eden Brown Limited","Agency Staff","-1,330.15","R1100","01/04/15","All VAT recoverable"
"Wolverhampton City Council","http://opendatacommunities.org/id/metropolitan-district-council/wolverhampton","Fleet Services","Flying Penguin Enterprises","Equipment - Purchase","215.18","R4000","01/04/15","All VAT recoverable"
"Wolverhampton City Council","http://opendatacommunities.org/id/metropolitan-district-council/wolverhampton","Environmental Maintenance","Adt Fire And Security PLC","Fixtures and Fittings - R&M","305.45","R2502","01/04/15","All VAT recoverable"
"Wolverhampton City Council","http://opendatacommunities.org/id/metropolitan-district-council/wolverhampton","Environmental Maintenance","Adt Fire And Security PLC","Fixtures and Fittings - R&M","1,052.58","R2502","01/04/15","All VAT recoverable"
"Wolverhampton City Council","http://opendatacommunities.org/id/metropolitan-district-council/wolverhampton","Fleet Services","Flying Penguin Enterprises","Equipment - Purchase","30.88","R4000","01/04/15","All VAT recoverable"
"Wolverhampton City Council","http://opendatacommunities.org/id/metropolitan-district-council/wolverhampton","Adult Education","Access To Business","Grant Payments","3,176.15","R4700","01/04/15","All VAT recoverable"
"Wolverhampton City Council","http://opendatacommunities.org/id/metropolitan-district-council/wolverhampton","Culture Arts & Heritage","Frank Lockley","Subsistence","12.60","R4610","01/04/15","All VAT recoverable"
"Wolverhampton City Council","http://opendatacommunities.org/id/metropolitan-district-council/wolverhampton","Healthier Places Service","Beacon Centre For The Blind","Room Hire","-97.30","R2201","01/04/15","All VAT recoverable"
"Wolverhampton City Council","http://opendatacommunities.org/id/metropolitan-district-council/wolverhampton","Schools","Forum Business Media Limited","Comms - Postage","110.98","R4503","01/04/15","All VAT recoverable"
"Wolverhampton City Council","http://opendatacommunities.org/id/metropolitan-district-council/wolverhampton","All Age Disability (Disabilities)","Bilston Resource Centre","Grant Payments","6,452.80","R4700","01/04/15","All VAT recoverable"
"Wolverhampton City Council","http://opendatacommunities.org/id/metropolitan-district-council/wolverhampton","Fleet Services","Fred Smith & Sons (Motor Bodies) Limited","Equipment - Purchase","183.34","R4000","01/04/15","All VAT recoverable"
"Wolverhampton City Council","http://opendatacommunities.org/id/metropolitan-district-council/wolverhampton","Leisure Services","Fred Steele Vending","Provisions (Resale)","251.90","R4102","01/04/15","All VAT recoverable"
"Wolverhampton City Council","http://opendatacommunities.org/id/metropolitan-district-council/wolverhampton","Leisure Services","Fred Steele Vending","Provisions (Resale)","-251.90","R4102","01/04/15","All VAT recoverable"
"Wolverhampton City Council","http://opendatacommunities.org/id/metropolitan-district-council/wolverhampton","Healthier Places Service","Beacon Centre For The Blind","Room Hire","38.50","R2201","01/04/15","All VAT recoverable"
"Wolverhampton City Council","http://opendatacommunities.org/id/metropolitan-district-council/wolverhampton","Healthier Places Service","Beacon Centre For The Blind","Room Hire","58.80","R2201","01/04/15","All VAT recoverable"
"Wolverhampton City Council","http://opendatacommunities.org/id/metropolitan-district-council/wolverhampton","Leisure Services","Fred Steele Vending","Provisions (Resale)","241.92","R4102","01/04/15","All VAT recoverable"
"Wolverhampton City Council","http://opendatacommunities.org/id/metropolitan-district-council/wolverhampton","Leisure Services","Fred Steele Vending","Provisions (Resale)","9.98","R4102","01/04/15","All VAT recoverable"
"Wolverhampton City Council","http://opendatacommunities.org/id/metropolitan-district-council/wolverhampton","Fleet Services","Bickford Truck Hire Limited","Hire of Vehicles","525.00","R3200","01/04/15","All VAT recoverable"
"Wolverhampton City Council","http://opendatacommunities.org/id/metropolitan-district-council/wolverhampton","Adult Education","Bilston Resource Centre","Grant Payments","5,831.96","R4700","01/04/15","All VAT recoverable"
"Wolverhampton City Council","http://opendatacommunities.org/id/metropolitan-district-council/wolverhampton","Healthier Places Service","Beacon Centre For The Blind","Room Hire","97.30","R2201","01/04/15","All VAT recoverable"
"Wolverhampton City Council","http://opendatacommunities.org/id/metropolitan-district-council/wolverhampton","Property Services","Jacobs U.K.Limited","R&M - Departmental planned (external)","293.10","R2001","01/04/15","All VAT recoverable"
"Wolverhampton City Council","http://opendatacommunities.org/id/metropolitan-district-council/wolverhampton","Learning Disability Provider","Eden Brown Limited","Agency Staff","580.68","R1100","01/04/15","All VAT recoverable"
"Wolverhampton City Council","http://opendatacommunities.org/id/metropolitan-district-council/wolverhampton","","Jacobs U.K.Limited","Construction and Conversion","975.00","C1100","01/04/15","All VAT recoverable"
"Wolverhampton City Council","http://opendatacommunities.org/id/metropolitan-district-council/wolverhampton","","Jacobs U.K.Limited","Construction and Conversion","78,720.40","C1100","01/04/15","All VAT recoverable"
"Wolverhampton City Council","http://opendatacommunities.org/id/metropolitan-district-council/wolverhampton","Bereavement Services","F Jennings & Sons Limited","Services - Professional Fees","367.50","R4400","01/04/15","All VAT recoverable"
"Wolverhampton City Council","http://opendatacommunities.org/id/metropolitan-district-council/wolverhampton","School Planning & Resources","Jacobs U.K.Limited","Services - Professional Fees","1,000.00","R4400","01/04/15","All VAT recoverable"
"Wolverhampton City Council","http://opendatacommunities.org/id/metropolitan-district-council/wolverhampton","","Jacobs U.K.Limited","Construction and Conversion","1,773.26","C1100","01/04/15","All VAT recoverable"
"Wolverhampton City Council","http://opendatacommunities.org/id/metropolitan-district-council/wolverhampton","","Jacobs U.K.Limited","Construction and Conversion","3,703.29","C1100","01/04/15","All VAT recoverable"
"Wolverhampton City Council","http://opendatacommunities.org/id/metropolitan-district-council/wolverhampton","Bereavement Services","F Jennings & Sons Limited","Services - Professional Fees","336.00","R4400","01/04/15","All VAT recoverable"
"Wolverhampton City Council","http://opendatacommunities.org/id/metropolitan-district-council/wolverhampton","Bereavement Services","F Jennings & Sons Limited","Services - Professional Fees","336.00","R4400","01/04/15","All VAT recoverable"
"Wolverhampton City Council","http://opendatacommunities.org/id/metropolitan-district-council/wolverhampton","Physical Regeneration","Jacobs U.K.Limited","Services - Professional Fees","5,901.38","R4400","01/04/15","All VAT recoverable"
"Wolverhampton City Council","http://opendatacommunities.org/id/metropolitan-district-council/wolverhampton","Learning Disability Provider","Eden Brown Limited","Agency Staff","225.82","R1100","01/04/15","All VAT recoverable"
"Wolverhampton City Council","http://opendatacommunities.org/id/metropolitan-district-council/wolverhampton","Learning Disability Provider","Eden Brown Limited","Agency Staff","258.08","R1100","01/04/15","All VAT recoverable"
"Wolverhampton City Council","http://opendatacommunities.org/id/metropolitan-district-council/wolverhampton","Revenues & Benefits","Dukes Bailiffs Limited","Services - Professional Fees","23.19","R4400","01/04/15","All VAT recoverable"
"Wolverhampton City Council","http://opendatacommunities.org/id/metropolitan-district-council/wolverhampton","Learning Disability Provider","Eden Brown Limited","Agency Staff","240.45","R1100","01/04/15","All VAT recoverable"
"Wolverhampton City Council","http://opendatacommunities.org/id/metropolitan-district-council/wolverhampton","Estates and Valuations","E.On(Consumption Of Gas/Elec Units).","Electricity","30.70","R2100","01/04/15","All VAT recoverable"
"Wolverhampton City Council","http://opendatacommunities.org/id/metropolitan-district-council/wolverhampton","Childrens Centres & Early Years","F.4.K. Limited","Grant Payments","2,890.00","R4700","01/04/15","All VAT recoverable"
"Wolverhampton City Council","http://opendatacommunities.org/id/metropolitan-district-council/wolverhampton","School Planning & Resources","Fuller Music","Equipment - R & M","14.98","R4003","01/04/15","All VAT recoverable"
"Wolverhampton City Council","http://opendatacommunities.org/id/metropolitan-district-council/wolverhampton","Learning Disability Provider","Eden Brown Limited","Agency Staff","250.02","R1100","01/04/15","All VAT recoverable"
"Wolverhampton City Council","http://opendatacommunities.org/id/metropolitan-district-council/wolverhampton","School Planning & Resources","Fuller Music","Equipment - R & M","-14.98","R4003","01/04/15","All VAT recoverable"
"Wolverhampton City Council","http://opendatacommunities.org/id/metropolitan-district-council/wolverhampton","School Planning & Resources","Fuller Music","Comms - Postage","8.83","R4503","01/04/15","All VAT recoverable"
"Wolverhampton City Council","http://opendatacommunities.org/id/metropolitan-district-council/wolverhampton","School Planning & Resources","Fuller Music","Equipment - R & M","14.98","R4003","01/04/15","All VAT recoverable"
"Wolverhampton City Council","http://opendatacommunities.org/id/metropolitan-district-council/wolverhampton","Fleet Services","F.W. Bickford & Sons Limited","Hire of Vehicles","1,700.00","R3200","01/04/15","All VAT recoverable"
"Wolverhampton City Council","http://opendatacommunities.org/id/metropolitan-district-council/wolverhampton","Fleet Services","Bickford Truck Hire Limited","Hire of Vehicles","525.00","R3200","01/04/15","All VAT recoverable"
"Wolverhampton City Council","http://opendatacommunities.org/id/metropolitan-district-council/wolverhampton","Learning Disability Provider","Eden Brown Limited","Agency Staff","64.12","R1100","01/04/15","All VAT recoverable"
"Wolverhampton City Council","http://opendatacommunities.org/id/metropolitan-district-council/wolverhampton","Healthier Places Service","Beacon Centre For The Blind","Room Hire","33.00","R2201","01/04/15","All VAT recoverable"
"Wolverhampton City Council","http://opendatacommunities.org/id/metropolitan-district-council/wolverhampton","Highways Maintenance","Carver (Wolverhampton) Limited","Petrol","23.56","R3000","01/04/15","All VAT recoverable"
"Wolverhampton City Council","http://opendatacommunities.org/id/metropolitan-district-council/wolverhampton","Revenues & Benefits","Eden Brown Limited","Agency Staff","1,075.68","R1100","01/04/15","All VAT recoverable"
"Wolverhampton City Council","http://opendatacommunities.org/id/metropolitan-district-council/wolverhampton","Communications & Marketing","Eden Brown Limited","Agency Staff","-1,330.15","R1100","01/04/15","All VAT recoverable"
"Wolverhampton City Council","http://opendatacommunities.org/id/metropolitan-district-council/wolverhampton","","Jacobs U.K.Limited","Construction and Conversion","20,648.50","C1100","01/04/15","All VAT recoverable"
"Wolverhampton City Council","http://opendatacommunities.org/id/metropolitan-district-council/wolverhampton","Children in Need & Child Protection","Eden Brown Limited","Agency Staff","-1,330.15","R1100","01/04/15","All VAT recoverable"
"Wolverhampton City Council","http://opendatacommunities.org/id/metropolitan-district-council/wolverhampton","Catering","Beverages Direct Limited","Provisions (Resale)","35.02","R4102","01/04/15","All VAT recoverable"
"Wolverhampton City Council","http://opendatacommunities.org/id/metropolitan-district-council/wolverhampton","Learning Disability Provider","Eden Brown Limited","Agency Staff","241.95","R1100","01/04/15","All VAT recoverable"
"Wolverhampton City Council","http://opendatacommunities.org/id/metropolitan-district-council/wolverhampton","","Jacobs U.K.Limited","Construction and Conversion","1,847.98","C1100","01/04/15","All VAT recoverable"
"Wolverhampton City Council","http://opendatacommunities.org/id/metropolitan-district-council/wolverhampton","Healthier Places Service","Beacon Centre For The Blind","Room Hire","123.75","R2201","01/04/15","All VAT recoverable"
"Wolverhampton City Council","http://opendatacommunities.org/id/metropolitan-district-council/wolverhampton","Enterprise & Skills","Gatenby Sanderson Limited","Services - Consultants","12,413.50","R4404","01/04/15","All VAT recoverable"
"Wolverhampton City Council","http://opendatacommunities.org/id/metropolitan-district-council/wolverhampton","Strategic Director People","Gatenby Sanderson Limited","Agency Staff","23,180.00","R1100","01/04/15","All VAT recoverable"
"Wolverhampton City Council","http://opendatacommunities.org/id/metropolitan-district-council/wolverhampton","Healthier Places Service","Beacon Centre For The Blind","Room Hire","-123.75","R2201","01/04/15","All VAT recoverable"
"Wolverhampton City Council","http://opendatacommunities.org/id/metropolitan-district-council/wolverhampton","Healthier Places Service","Beacon Centre For The Blind","Room Hire","41.25","R2201","01/04/15","All VAT recoverable"
"Wolverhampton City Council","http://opendatacommunities.org/id/metropolitan-district-council/wolverhampton","Healthier Places Service","Beacon Centre For The Blind","Room Hire","82.50","R2201","01/04/15","All VAT recoverable"
"Wolverhampton City Council","http://opendatacommunities.org/id/metropolitan-district-council/wolverhampton","Learning Disability Provider","Eden Brown Limited","Agency Staff","250.02","R1100","01/04/15","All VAT recoverable"
"Wolverhampton City Council","http://opendatacommunities.org/id/metropolitan-district-council/wolverhampton","Engineering & Civic Centre","Jacobs U.K.Limited","R&M - Departmental planned (external)","12,122.00","R2001","01/04/15","All VAT recoverable"
"Wolverhampton City Council","http://opendatacommunities.org/id/metropolitan-district-council/wolverhampton","Healthier Places Service","Beacon Centre For The Blind","Room Hire","99.00","R2201","01/04/15","All VAT recoverable"
"Wolverhampton City Council","http://opendatacommunities.org/id/metropolitan-district-council/wolverhampton","Healthier Places Service","Beacon Centre For The Blind","Room Hire","-99.00","R2201","01/04/15","All VAT recoverable"
"Wolverhampton City Council","http://opendatacommunities.org/id/metropolitan-district-council/wolverhampton","Fleet Services","Access Tail Lift Services Limited","Services - Professional Fees","57.44","R4400","01/04/15","All VAT recoverable"
"Wolverhampton City Council","http://opendatacommunities.org/id/metropolitan-district-council/wolverhampton","Healthier Places Service","Beacon Centre For The Blind","Room Hire","66.00","R2201","01/04/15","All VAT recoverable"
"Wolverhampton City Council","http://opendatacommunities.org/id/metropolitan-district-council/wolverhampton","Property Services","Jacobs U.K.Limited","Services - Professional Fees","61,622.00","R4400","01/04/15","All VAT recoverable"
"Wolverhampton City Council","http://opendatacommunities.org/id/metropolitan-district-council/wolverhampton","","Jacobs U.K.Limited","Grants paid out","25,168.80","C5000","01/04/15","All VAT recoverable"
"Wolverhampton City Council","http://opendatacommunities.org/id/metropolitan-district-council/wolverhampton","Corporate Asset Management","Jacobs U.K.Limited","Construction and Conversion","55,949.00","C1100","01/04/15","All VAT recoverable"
"Wolverhampton City Council","http://opendatacommunities.org/id/metropolitan-district-council/wolverhampton","","Fitzgerald Contractors Limited","Construction and Conversion","7,101.70","C1100","01/04/15","All VAT recoverable"
"Wolverhampton City Council","http://opendatacommunities.org/id/metropolitan-district-council/wolverhampton","Children in Need & Child Protection","Eden Brown Limited","Agency Staff","-1,330.15","R1100","01/04/15","All VAT recoverable"
"Wolverhampton City Council","http://opendatacommunities.org/id/metropolitan-district-council/wolverhampton","Fleet Services","Access Tail Lift Services Limited","Services - Professional Fees","57.44","R4400","01/04/15","All VAT recoverable"
"Wolverhampton City Council","http://opendatacommunities.org/id/metropolitan-district-council/wolverhampton","Fleet Services","Access Tail Lift Services Limited","Services - Professional Fees","57.54","R4400","01/04/15","All VAT recoverable"
"Wolverhampton City Council","http://opendatacommunities.org/id/metropolitan-district-council/wolverhampton","Fleet Services","Access Tail Lift Services Limited","Services - Professional Fees","57.44","R4400","01/04/15","All VAT recoverable"
"Wolverhampton City Council","http://opendatacommunities.org/id/metropolitan-district-council/wolverhampton","Fleet Services","Access Tail Lift Services Limited","Services - Professional Fees","57.44","R4400","01/04/15","All VAT recoverable"
"Wolverhampton City Council","http://opendatacommunities.org/id/metropolitan-district-council/wolverhampton","Learning Disability Provider","Eden Brown Limited","Agency Staff","677.46","R1100","01/04/15","All VAT recoverable"
"Wolverhampton City Council","http://opendatacommunities.org/id/metropolitan-district-council/wolverhampton","Adult Education","City & Guilds","Exam Expenses (Non-Employee)","291.00","R4630","01/04/15","All VAT recoverable"
"Wolverhampton City Council","http://opendatacommunities.org/id/metropolitan-district-council/wolverhampton","Revenues & Benefits","Eden Brown Limited","Agency Staff","1,449.00","R1100","01/04/15","All VAT recoverable"
"Wolverhampton City Council","http://opendatacommunities.org/id/metropolitan-district-council/wolverhampton","Planning","Jacobs U.K.Limited","Services - Professional Fees","9,137.62","R4400","01/04/15","All VAT recoverable"
"Wolverhampton City Council","http://opendatacommunities.org/id/metropolitan-district-council/wolverhampton","Library Services","Bains Supersave Limited","Publications","68.69","R4310","01/04/15","All VAT recoverable"
"Wolverhampton City Council","http://opendatacommunities.org/id/metropolitan-district-council/wolverhampton","","Jacobs U.K.Limited","Construction and Conversion","2,180.00","C1100","01/04/15","All VAT recoverable"
"Wolverhampton City Council","http://opendatacommunities.org/id/metropolitan-district-council/wolverhampton","School Planning & Resources","Jacobs U.K.Limited","Services - Professional Fees","4,452.87","R4400","01/04/15","All VAT recoverable"
"Wolverhampton City Council","http://opendatacommunities.org/id/metropolitan-district-council/wolverhampton","Cleaning & Caretaking Service","Jacobs U.K.Limited","Services - Professional Fees","4,447.92","R4400","01/04/15","All VAT recoverable"
"Wolverhampton City Council","http://opendatacommunities.org/id/metropolitan-district-council/wolverhampton","Estates and Valuations","Jacobs U.K.Limited","Services - Professional Fees","2,682.00","R4400","01/04/15","All VAT recoverable"
"Wolverhampton City Council","http://opendatacommunities.org/id/metropolitan-district-council/wolverhampton","Engineering & Civic Centre","Essentra Packaging & Security Limited","Equipment - Purchase","284.50","R4000","01/04/15","All VAT recoverable"
"Wolverhampton City Council","http://opendatacommunities.org/id/metropolitan-district-council/wolverhampton","Engineering & Civic Centre","Carver (Wolverhampton) Limited","R&M - Departmental planned (internal)","52.50","R2000","01/04/15","All VAT recoverable"
"Wolverhampton City Council","http://opendatacommunities.org/id/metropolitan-district-council/wolverhampton","Engineering & Civic Centre","Carver (Wolverhampton) Limited","R&M - Departmental planned (internal)","112.50","R2000","01/04/15","All VAT recoverable"
"Wolverhampton City Council","http://opendatacommunities.org/id/metropolitan-district-council/wolverhampton","Highways Maintenance","Carver (Wolverhampton) Limited","Petrol","23.14","R3000","01/04/15","All VAT recoverable"
"Wolverhampton City Council","http://opendatacommunities.org/id/metropolitan-district-council/wolverhampton","Highways Maintenance","Carver (Wolverhampton) Limited","Petrol","23.94","R3000","01/04/15","All VAT recoverable"
"Wolverhampton City Council","http://opendatacommunities.org/id/metropolitan-district-council/wolverhampton","Culture Arts & Heritage","Arthur Brett (Catering) Limited","Provisions (Resale)","114.80","R4102","01/04/15","All VAT recoverable"
"Wolverhampton City Council","http://opendatacommunities.org/id/metropolitan-district-council/wolverhampton","Contracts","Arthur Brett (Catering) Limited","Provisions (Resale)","419.96","R4102","01/04/15","All VAT recoverable"
"Wolverhampton City Council","http://opendatacommunities.org/id/metropolitan-district-council/wolverhampton","Contracts","Arthur Brett (Catering) Limited","Provisions (Resale)","617.72","R4102","01/04/15","All VAT recoverable"
"Wolverhampton City Council","http://opendatacommunities.org/id/metropolitan-district-council/wolverhampton","Leisure Services","Arthur Brett (Catering) Limited","Provisions (Resale)","31.28","R4102","01/04/15","All VAT recoverable"
"Wolverhampton City Council","http://opendatacommunities.org/id/metropolitan-district-council/wolverhampton","Leisure Services","Arthur Brett (Catering) Limited","Provisions (Resale)","14.44","R4102","01/04/15","All VAT recoverable"
"Wolverhampton City Council","http://opendatacommunities.org/id/metropolitan-district-council/wolverhampton","Older People Provider Services","Arthur Brett (Catering) Limited","Provisions (Resale)","33.06","R4102","01/04/15","All VAT recoverable"
"Wolverhampton City Council","http://opendatacommunities.org/id/metropolitan-district-council/wolverhampton","Older People Provider Services","Arthur Brett (Catering) Limited","Provisions (Resale)","45.19","R4102","01/04/15","All VAT recoverable"
"Wolverhampton City Council","http://opendatacommunities.org/id/metropolitan-district-council/wolverhampton","Learning Disability Provider","Arthur Brett (Catering) Limited","Provisions (Resale)","4.57","R4102","01/04/15","All VAT recoverable"
"Wolverhampton City Council","http://opendatacommunities.org/id/metropolitan-district-council/wolverhampton","Learning Disability Provider","Arthur Brett (Catering) Limited","Provisions (Resale)","21.96","R4102","01/04/15","All VAT recoverable"
"Wolverhampton City Council","http://opendatacommunities.org/id/metropolitan-district-council/wolverhampton","Older People Provider Services","Arthur Brett (Catering) Limited","Provisions (Resale)","58.83","R4102","01/04/15","All VAT recoverable"
"Wolverhampton City Council","http://opendatacommunities.org/id/metropolitan-district-council/wolverhampton","Looked After Children","J Beddow Assocs/Walsall Contact Ctre","TPP - Social Care Support Services","105.00","R5501","01/04/15","All VAT recoverable"
"Wolverhampton City Council","http://opendatacommunities.org/id/metropolitan-district-council/wolverhampton","Catering","Arthur Brett (Catering) Limited","Provisions (Resale)","24,498.23","R4102","01/04/15","All VAT recoverable"
"Wolverhampton City Council","http://opendatacommunities.org/id/metropolitan-district-council/wolverhampton","Catering","Arthur Brett (Catering) Limited","Provisions (Resale)","362.94","R4102","01/04/15","All VAT recoverable"
"Wolverhampton City Council","http://opendatacommunities.org/id/metropolitan-district-council/wolverhampton","Catering","Arthur Brett (Catering) Limited","Provisions (Resale)","453.67","R4102","01/04/15","All VAT recoverable"
"Wolverhampton City Council","http://opendatacommunities.org/id/metropolitan-district-council/wolverhampton","Catering","Arthur Brett (Catering) Limited","Provisions (Resale)","635.14","R4102","01/04/15","All VAT recoverable"
"Wolverhampton City Council","http://opendatacommunities.org/id/metropolitan-district-council/wolverhampton","Older People Provider Services","Arthur Brett (Catering) Limited","Provisions (Resale)","26.06","R4102","01/04/15","All VAT recoverable"
"Wolverhampton City Council","http://opendatacommunities.org/id/metropolitan-district-council/wolverhampton","Culture Arts & Heritage","Arthur Brett (Catering) Limited","Provisions (Resale)","96.91","R4102","01/04/15","All VAT recoverable"
"Wolverhampton City Council","http://opendatacommunities.org/id/metropolitan-district-council/wolverhampton","Culture Arts & Heritage","Arthur Brett (Catering) Limited","Provisions (Resale)","88.44","R4102","01/04/15","All VAT recoverable"
"Wolverhampton City Council","http://opendatacommunities.org/id/metropolitan-district-council/wolverhampton","Leisure Services","Arthur Brett (Catering) Limited","Provisions (Resale)","58.48","R4102","01/04/15","All VAT recoverable"
"Wolverhampton City Council","http://opendatacommunities.org/id/metropolitan-district-council/wolverhampton","Engineering & Civic Centre","Carver (Wolverhampton) Limited","R&M - Departmental planned (internal)","112.50","R2000","01/04/15","All VAT recoverable"
"Wolverhampton City Council","http://opendatacommunities.org/id/metropolitan-district-council/wolverhampton","Engineering & Civic Centre","Carver (Wolverhampton) Limited","R&M - Departmental planned (internal)","112.50","R2000","01/04/15","All VAT recoverable"
"Wolverhampton City Council","http://opendatacommunities.org/id/metropolitan-district-council/wolverhampton","Engineering & Civic Centre","Carver (Wolverhampton) Limited","R&M - Departmental planned (internal)","112.50","R2000","01/04/15","All VAT recoverable"
"Wolverhampton City Council","http://opendatacommunities.org/id/metropolitan-district-council/wolverhampton","Highways Maintenance","Carver (Wolverhampton) Limited","Petrol","26.41","R3000","01/04/15","All VAT recoverable"
"Wolverhampton City Council","http://opendatacommunities.org/id/metropolitan-district-council/wolverhampton","Highways Maintenance","Carver (Wolverhampton) Limited","Petrol","21.37","R3000","01/04/15","All VAT recoverable"
"Wolverhampton City Council","http://opendatacommunities.org/id/metropolitan-district-council/wolverhampton","Highways Maintenance","Carver (Wolverhampton) Limited","Petrol","13.87","R3000","01/04/15","All VAT recoverable"
"Wolverhampton City Council","http://opendatacommunities.org/id/metropolitan-district-council/wolverhampton","Highways Maintenance","Carver (Wolverhampton) Limited","Petrol","21.62","R3000","01/04/15","All VAT recoverable"
"Wolverhampton City Council","http://opendatacommunities.org/id/metropolitan-district-council/wolverhampton","Highways Maintenance","Carver (Wolverhampton) Limited","Petrol","29.31","R3000","01/04/15","All VAT recoverable"
"Wolverhampton City Council","http://opendatacommunities.org/id/metropolitan-district-council/wolverhampton","Highways Maintenance","Carver (Wolverhampton) Limited","Petrol","24.83","R3000","01/04/15","All VAT recoverable"
"Wolverhampton City Council","http://opendatacommunities.org/id/metropolitan-district-council/wolverhampton","Highways Maintenance","Carver (Wolverhampton) Limited","Petrol","9.28","R3000","01/04/15","All VAT recoverable"
"Wolverhampton City Council","http://opendatacommunities.org/id/metropolitan-district-council/wolverhampton","Contracts","Arthur Brett (Catering) Limited","Provisions (Resale)","415.76","R4102","01/04/15","All VAT recoverable"
"Wolverhampton City Council","http://opendatacommunities.org/id/metropolitan-district-council/wolverhampton","Culture Arts & Heritage","Arthur Brett (Catering) Limited","Provisions (Resale)","52.17","R4102","01/04/15","All VAT recoverable"
"Wolverhampton City Council","http://opendatacommunities.org/id/metropolitan-district-council/wolverhampton","Highways Maintenance","Carver (Wolverhampton) Limited","Petrol","18.94","R3000","01/04/15","All VAT recoverable"
"Wolverhampton City Council","http://opendatacommunities.org/id/metropolitan-district-council/wolverhampton","Culture Arts & Heritage","Arthur Brett (Catering) Limited","Provisions (Resale)","98.90","R4102","01/04/15","All VAT recoverable"
"Wolverhampton City Council","http://opendatacommunities.org/id/metropolitan-district-council/wolverhampton","Learning Disability Provider","Arthur Brett (Catering) Limited","Provisions (Resale)","-8.40","R4102","01/04/15","All VAT recoverable"
"Wolverhampton City Council","http://opendatacommunities.org/id/metropolitan-district-council/wolverhampton","Learning Disability Provider","Eden Brown Limited","Agency Staff","701.66","R1100","01/04/15","All VAT recoverable"
"Wolverhampton City Council","http://opendatacommunities.org/id/metropolitan-district-council/wolverhampton","Culture Arts & Heritage","Black Country Touring","Services - Professional Fees","550.00","R4400","01/04/15","All VAT recoverable"
"Wolverhampton City Council","http://opendatacommunities.org/id/metropolitan-district-council/wolverhampton","Looked After Children","J A Foulkes Ltd","Services - Professional Fees","805.20","R4400","01/04/15","All VAT recoverable"
"Wolverhampton City Council","http://opendatacommunities.org/id/metropolitan-district-council/wolverhampton","Learning Disability Provider","Arthur Brett (Catering) Limited","Provisions (Resale)","-3.13","R4102","01/04/15","All VAT recoverable"
"Wolverhampton City Council","http://opendatacommunities.org/id/metropolitan-district-council/wolverhampton","Highways Maintenance","Carver (Wolverhampton) Limited","Petrol","20.67","R3000","01/04/15","All VAT recoverable"
"Wolverhampton City Council","http://opendatacommunities.org/id/metropolitan-district-council/wolverhampton","Highways Maintenance","Carver (Wolverhampton) Limited","Petrol","14.83","R3000","01/04/15","All VAT recoverable"
"Wolverhampton City Council","http://opendatacommunities.org/id/metropolitan-district-council/wolverhampton","Highways Maintenance","Carver (Wolverhampton) Limited","Petrol","20.79","R3000","01/04/15","All VAT recoverable"
"Wolverhampton City Council","http://opendatacommunities.org/id/metropolitan-district-council/wolverhampton","Highways Maintenance","Carver (Wolverhampton) Limited","Petrol","24.80","R3000","01/04/15","All VAT recoverable"
"Wolverhampton City Council","http://opendatacommunities.org/id/metropolitan-district-council/wolverhampton","Cleaning & Caretaking Service","Bbp.Security Services & Training Limited","Services - Security","170.00","R4405","01/04/15","All VAT recoverable"
"Wolverhampton City Council","http://opendatacommunities.org/id/metropolitan-district-council/wolverhampton","Engineering & Civic Centre","Bbp.Security Services & Training Limited","Services - Security","600.00","R4405","01/04/15","All VAT recoverable"
"Wolverhampton City Council","http://opendatacommunities.org/id/metropolitan-district-council/wolverhampton","Engineering & Civic Centre","Carver (Wolverhampton) Limited","R&M - Departmental planned (internal)","112.50","R2000","01/04/15","All VAT recoverable"
"Wolverhampton City Council","http://opendatacommunities.org/id/metropolitan-district-council/wolverhampton","Cleaning & Caretaking Service","Bbp.Security Services & Training Limited","Services - Security","599.64","R4405","01/04/15","All VAT recoverable"
"Wolverhampton City Council","http://opendatacommunities.org/id/metropolitan-district-council/wolverhampton","Fleet Services","Evans Halshaw Ford","Equipment - Purchase","30.63","R4000","01/04/15","All VAT recoverable"
"Wolverhampton City Council","http://opendatacommunities.org/id/metropolitan-district-council/wolverhampton","Learning Disability Provider","Eden Brown Limited","Agency Staff","72.80","R1100","01/04/15","All VAT recoverable"
"Wolverhampton City Council","http://opendatacommunities.org/id/metropolitan-district-council/wolverhampton","Learning Disability Provider","Eden Brown Limited","Agency Staff","208.39","R1100","01/04/15","All VAT recoverable"
"Wolverhampton City Council","http://opendatacommunities.org/id/metropolitan-district-council/wolverhampton","Learning Disability Provider","Eden Brown Limited","Agency Staff","208.39","R1100","01/04/15","All VAT recoverable"
"Wolverhampton City Council","http://opendatacommunities.org/id/metropolitan-district-council/wolverhampton","Learning Disability Provider","Eden Brown Limited","Agency Staff","112.21","R1100","01/04/15","All VAT recoverable"
"Wolverhampton City Council","http://opendatacommunities.org/id/metropolitan-district-council/wolverhampton","Children in Need & Child Protection","Cater Walsh Reporting Ltd","Services - Professional Fees","187.51","R4400","01/04/15","All VAT recoverable"
"Wolverhampton City Council","http://opendatacommunities.org/id/metropolitan-district-council/wolverhampton","Learning Disability Provider","Eden Brown Limited","Agency Staff","128.24","R1100","01/04/15","All VAT recoverable"
"Wolverhampton City Council","http://opendatacommunities.org/id/metropolitan-district-council/wolverhampton","Learning Disability Provider","Eden Brown Limited","Agency Staff","601.13","R1100","01/04/15","All VAT recoverable"
"Wolverhampton City Council","http://opendatacommunities.org/id/metropolitan-district-council/wolverhampton","Learning Disability Provider","Eden Brown Limited","Agency Staff","625.17","R1100","01/04/15","All VAT recoverable"
"Wolverhampton City Council","http://opendatacommunities.org/id/metropolitan-district-council/wolverhampton","Learning Disability Provider","Eden Brown Limited","Agency Staff","593.11","R1100","01/04/15","All VAT recoverable"
"Wolverhampton City Council","http://opendatacommunities.org/id/metropolitan-district-council/wolverhampton","Learning Disability Provider","Eden Brown Limited","Agency Staff","384.72","R1100","01/04/15","All VAT recoverable"
"Wolverhampton City Council","http://opendatacommunities.org/id/metropolitan-district-council/wolverhampton","Learning Disability Provider","Eden Brown Limited","Agency Staff","168.32","R1100","01/04/15","All VAT recoverable"
"Wolverhampton City Council","http://opendatacommunities.org/id/metropolitan-district-council/wolverhampton","Customer Services","Eden Brown Limited","Agency Staff","315.77","R1100","01/04/15","All VAT recoverable"
"Wolverhampton City Council","http://opendatacommunities.org/id/metropolitan-district-council/wolverhampton","Customer Services","Eden Brown Limited","Agency Staff","101.33","R1100","01/04/15","All VAT recoverable"
"Wolverhampton City Council","http://opendatacommunities.org/id/metropolitan-district-council/wolverhampton","Revenues & Benefits","Eden Brown Limited","Agency Staff","1,189.25","R1100","01/04/15","All VAT recoverable"
"Wolverhampton City Council","http://opendatacommunities.org/id/metropolitan-district-council/wolverhampton","Cleaning & Caretaking Service","Initial Washroom Solutions","Equipment - Hire","52.09","R4001","01/04/15","All VAT recoverable"
"Wolverhampton City Council","http://opendatacommunities.org/id/metropolitan-district-council/wolverhampton","Cleaning & Caretaking Service","Initial Washroom Solutions","Equipment - Hire","52.09","R4001","01/04/15","All VAT recoverable"
"Wolverhampton City Council","http://opendatacommunities.org/id/metropolitan-district-council/wolverhampton","Revenues & Benefits","Eden Brown Limited","Agency Staff","1,591.25","R1100","01/04/15","All VAT recoverable"
"Wolverhampton City Council","http://opendatacommunities.org/id/metropolitan-district-council/wolverhampton","Revenues & Benefits","Eden Brown Limited","Agency Staff","1,108.08","R1100","01/04/15","All VAT recoverable"
"Wolverhampton City Council","http://opendatacommunities.org/id/metropolitan-district-council/wolverhampton","Revenues & Benefits","Eden Brown Limited","Agency Staff","1,490.75","R1100","01/04/15","All VAT recoverable"
"Wolverhampton City Council","http://opendatacommunities.org/id/metropolitan-district-council/wolverhampton","Revenues & Benefits","Eden Brown Limited","Agency Staff","1,086.75","R1100","01/04/15","All VAT recoverable"
"Wolverhampton City Council","http://opendatacommunities.org/id/metropolitan-district-council/wolverhampton","Learning Disability Provider","Eden Brown Limited","Agency Staff","193.56","R1100","01/04/15","All VAT recoverable"
"Wolverhampton City Council","http://opendatacommunities.org/id/metropolitan-district-council/wolverhampton","Fleet Services","Evans Halshaw Ford","Equipment - Purchase","-52.88","R4000","01/04/15","All VAT recoverable"
"Wolverhampton City Council","http://opendatacommunities.org/id/metropolitan-district-council/wolverhampton","Fleet Services","Evans Halshaw Ford","Equipment - Purchase","29.72","R4000","01/04/15","All VAT recoverable"
"Wolverhampton City Council","http://opendatacommunities.org/id/metropolitan-district-council/wolverhampton","Fleet Services","Evans Halshaw Ford","Equipment - Purchase","25.22","R4000","01/04/15","All VAT recoverable"
"Wolverhampton City Council","http://opendatacommunities.org/id/metropolitan-district-council/wolverhampton","Youth Offending","Asdan Limited","Subscriptions","350.00","R4701","01/04/15","All VAT recoverable"
"Wolverhampton City Council","http://opendatacommunities.org/id/metropolitan-district-council/wolverhampton","Street Lighting","Instarmac Group PLC","Materials","954.20","R4007","01/04/15","All VAT recoverable"
"Wolverhampton City Council","http://opendatacommunities.org/id/metropolitan-district-council/wolverhampton","Engineering & Civic Centre","Carver (Wolverhampton) Limited","R&M - Departmental planned (internal)","52.50","R2000","01/04/15","All VAT recoverable"
"Wolverhampton City Council","http://opendatacommunities.org/id/metropolitan-district-council/wolverhampton","Mental Health Commissioning","Black Country Partnership NHS Ft","TPP - Social Care Support Services","8,986.33","R5501","01/04/15","All VAT recoverable"
"Wolverhampton City Council","http://opendatacommunities.org/id/metropolitan-district-council/wolverhampton","Leisure Services","J P Lennard Limited","Comms - Postage","13.30","R4503","01/04/15","All VAT recoverable"
"Wolverhampton City Council","http://opendatacommunities.org/id/metropolitan-district-council/wolverhampton","Leisure Services","J P Lennard Limited","Equipment - R & M","246.70","R4003","01/04/15","All VAT recoverable"
"Wolverhampton City Council","http://opendatacommunities.org/id/metropolitan-district-council/wolverhampton","Mental Health Commissioning","Black Country Partnership NHS Ft","TPP - Social Care Support Services","8,986.33","R5501","01/04/15","All VAT recoverable"
"Wolverhampton City Council","http://opendatacommunities.org/id/metropolitan-district-council/wolverhampton","Mental Health Commissioning","Black Country Partnership NHS Ft","TPP - Social Care Support Services","13,855.33","R5501","01/04/15","All VAT recoverable"
"Wolverhampton City Council","http://opendatacommunities.org/id/metropolitan-district-council/wolverhampton","ICTS","Ccs Media Limited","Computing - Purchase of Hardware","479.00","R4530","01/04/15","All VAT recoverable"
"Wolverhampton City Council","http://opendatacommunities.org/id/metropolitan-district-council/wolverhampton","Mental Health Commissioning","Black Country Partnership NHS Ft","TPP - Social Care Support Services","8,986.33","R5501","01/04/15","All VAT recoverable"
"Wolverhampton City Council","http://opendatacommunities.org/id/metropolitan-district-council/wolverhampton","Youth Offending","Asdan Limited","Subscriptions","350.00","R4701","01/04/15","All VAT recoverable"
"Wolverhampton City Council","http://opendatacommunities.org/id/metropolitan-district-council/wolverhampton","Youth Offending","Asdan Limited","Subscriptions","-350.00","R4701","01/04/15","All VAT recoverable"
"Wolverhampton City Council","http://opendatacommunities.org/id/metropolitan-district-council/wolverhampton","Engineering & Civic Centre","Carver (Wolverhampton) Limited","R&M - Departmental planned (internal)","52.50","R2000","01/04/15","All VAT recoverable"
"Wolverhampton City Council","http://opendatacommunities.org/id/metropolitan-district-council/wolverhampton","Youth Offending","Asdan Limited","Training Expenses","290.00","R1650","01/04/15","All VAT recoverable"
"Wolverhampton City Council","http://opendatacommunities.org/id/metropolitan-district-council/wolverhampton","","Ashmore Park Community Association","Construction and Conversion","225.00","C1100","01/04/15","All VAT recoverable"
"Wolverhampton City Council","http://opendatacommunities.org/id/metropolitan-district-council/wolverhampton","","Ashmore Park Community Association","Construction and Conversion","-225.00","C1100","01/04/15","All VAT recoverable"
"Wolverhampton City Council","http://opendatacommunities.org/id/metropolitan-district-council/wolverhampton","","Ashmore Park Community Association","Construction and Conversion","225.00","C1100","01/04/15","All VAT recoverable"
"Wolverhampton City Council","http://opendatacommunities.org/id/metropolitan-district-council/wolverhampton","Fleet Services","Evans Halshaw Ford","Equipment - Purchase","99.26","R4000","01/04/15","All VAT recoverable"
"Wolverhampton City Council","http://opendatacommunities.org/id/metropolitan-district-council/wolverhampton","Fleet Services","Evans Halshaw Ford","Equipment - Purchase","19.13","R4000","01/04/15","All VAT recoverable"
"Wolverhampton City Council","http://opendatacommunities.org/id/metropolitan-district-council/wolverhampton","Fleet Services","Evans Halshaw Ford","Equipment - Purchase","11.19","R4000","01/04/15","All VAT recoverable"
"Wolverhampton City Council","http://opendatacommunities.org/id/metropolitan-district-council/wolverhampton","Fleet Services","Evans Halshaw Ford","Equipment - Purchase","25.22","R4000","01/04/15","All VAT recoverable"
"Wolverhampton City Council","http://opendatacommunities.org/id/metropolitan-district-council/wolverhampton","Fleet Services","Evans Halshaw Ford","Equipment - Purchase","11.19","R4000","01/04/15","All VAT recoverable"
"Wolverhampton City Council","http://opendatacommunities.org/id/metropolitan-district-council/wolverhampton","Fleet Services","Evans Halshaw Ford","Equipment - Purchase","1.78","R4000","01/04/15","All VAT recoverable"
"Wolverhampton City Council","http://opendatacommunities.org/id/metropolitan-district-council/wolverhampton","Learning Disability Provider","Eden Brown Limited","Agency Staff","208.39","R1100","01/04/15","All VAT recoverable"
"Wolverhampton City Council","http://opendatacommunities.org/id/metropolitan-district-council/wolverhampton","Fleet Services","Evans Halshaw Ford","Equipment - Purchase","12.25","R4000","01/04/15","All VAT recoverable"
"Wolverhampton City Council","http://opendatacommunities.org/id/metropolitan-district-council/wolverhampton","Learning Disability Provider","Eden Brown Limited","Agency Staff","320.60","R1100","01/04/15","All VAT recoverable"
"Wolverhampton City Council","http://opendatacommunities.org/id/metropolitan-district-council/wolverhampton","Engineering & Civic Centre","ERF Electrical Wholesalers Limited","Materials","985.50","R4007","01/04/15","All VAT recoverable"
"Wolverhampton City Council","http://opendatacommunities.org/id/metropolitan-district-council/wolverhampton","Engineering & Civic Centre","Jacobs U.K.Limited","Services - Professional Fees","900.00","R4400","01/04/15","All VAT recoverable"
"Wolverhampton City Council","http://opendatacommunities.org/id/metropolitan-district-council/wolverhampton","Looked After Children","Extra Personnel Limited","Agency Staff","269.42","R1100","01/04/15","All VAT recoverable"
"Wolverhampton City Council","http://opendatacommunities.org/id/metropolitan-district-council/wolverhampton","Looked After Children","Extra Personnel Limited","Agency Staff","439.73","R1100","01/04/15","All VAT recoverable"
"Wolverhampton City Council","http://opendatacommunities.org/id/metropolitan-district-council/wolverhampton","Looked After Children","Extra Personnel Limited","Agency Staff","439.57","R1100","01/04/15","All VAT recoverable"
"Wolverhampton City Council","http://opendatacommunities.org/id/metropolitan-district-council/wolverhampton","HR Advice","Extra Personnel Limited","Agency Staff","512.31","R1100","01/04/15","All VAT recoverable"
"Wolverhampton City Council","http://opendatacommunities.org/id/metropolitan-district-council/wolverhampton","Children in Need & Child Protection","Extra Personnel Limited","Agency Staff","122.88","R1100","01/04/15","All VAT recoverable"
"Wolverhampton City Council","http://opendatacommunities.org/id/metropolitan-district-council/wolverhampton","Parking Services","Extra Personnel Limited","Agency Staff","293.72","R1100","01/04/15","All VAT recoverable"
"Wolverhampton City Council","http://opendatacommunities.org/id/metropolitan-district-council/wolverhampton","Learning Disability Provider","Eden Brown Limited","Agency Staff","104.85","R1100","01/04/15","All VAT recoverable"
"Wolverhampton City Council","http://opendatacommunities.org/id/metropolitan-district-council/wolverhampton","School Planning & Resources","Jacobs U.K.Limited","R&M - Departmental planned (external)","-2,809.73","R2001","01/04/15","All VAT recoverable"
"Wolverhampton City Council","http://opendatacommunities.org/id/metropolitan-district-council/wolverhampton","School Planning & Resources","Jacobs U.K.Limited","R&M - Departmental planned (external)","-818.00","R2001","01/04/15","All VAT recoverable"
"Wolverhampton City Council","http://opendatacommunities.org/id/metropolitan-district-council/wolverhampton","School Planning & Resources","Jacobs U.K.Limited","R&M - Departmental planned (external)","-676.40","R2001","01/04/15","All VAT recoverable"
"Wolverhampton City Council","http://opendatacommunities.org/id/metropolitan-district-council/wolverhampton","Healthier Places Service","Carver (Wolverhampton) Limited","Printing","300.00","R4300","01/04/15","All VAT recoverable"
"Wolverhampton City Council","http://opendatacommunities.org/id/metropolitan-district-council/wolverhampton","Engineering & Civic Centre","Carver (Wolverhampton) Limited","R&M - Departmental planned (internal)","60.00","R2000","01/04/15","All VAT recoverable"
"Wolverhampton City Council","http://opendatacommunities.org/id/metropolitan-district-council/wolverhampton","Engineering & Civic Centre","Carver (Wolverhampton) Limited","R&M - Departmental planned (internal)","67.50","R2000","01/04/15","All VAT recoverable"
"Wolverhampton City Council","http://opendatacommunities.org/id/metropolitan-district-council/wolverhampton","Library Services","Epos Group","Fixtures and Fittings - R&M","45.00","R2502","01/04/15","All VAT recoverable"
"Wolverhampton City Council","http://opendatacommunities.org/id/metropolitan-district-council/wolverhampton","Highways Maintenance","Carver (Wolverhampton) Limited","Petrol","14.54","R3000","01/04/15","All VAT recoverable"
"Wolverhampton City Council","http://opendatacommunities.org/id/metropolitan-district-council/wolverhampton","Highways Maintenance","Carver (Wolverhampton) Limited","Petrol","18.79","R3000","01/04/15","All VAT recoverable"
"Wolverhampton City Council","http://opendatacommunities.org/id/metropolitan-district-council/wolverhampton","Children in Need & Child Protection","Extra Personnel Limited","Agency Staff","181.86","R1100","01/04/15","All VAT recoverable"
"Wolverhampton City Council","http://opendatacommunities.org/id/metropolitan-district-council/wolverhampton","Fleet Services","Geesink Norba Limited","Equipment - Purchase","38.48","R4000","01/04/15","All VAT recoverable"
"Wolverhampton City Council","http://opendatacommunities.org/id/metropolitan-district-council/wolverhampton","Fleet Services","Geesink Norba Limited","Equipment - Purchase","59.74","R4000","01/04/15","All VAT recoverable"
"Wolverhampton City Council","http://opendatacommunities.org/id/metropolitan-district-council/wolverhampton","Fleet Services","Geesink Norba Limited","Equipment - Purchase","7.82","R4000","01/04/15","All VAT recoverable"
"Wolverhampton City Council","http://opendatacommunities.org/id/metropolitan-district-council/wolverhampton","Fleet Services","Geesink Norba Limited","Equipment - Purchase","56.78","R4000","01/04/15","All VAT recoverable"
"Wolverhampton City Council","http://opendatacommunities.org/id/metropolitan-district-council/wolverhampton","Looked After Children","Extra Personnel Limited","Agency Staff","457.26","R1100","01/04/15","All VAT recoverable"
"Wolverhampton City Council","http://opendatacommunities.org/id/metropolitan-district-council/wolverhampton","Childrens Centres & Early Years","Barts Busy Bees","Grant Payments","3,431.25","R4700","01/04/15","All VAT recoverable"
"Wolverhampton City Council","http://opendatacommunities.org/id/metropolitan-district-council/wolverhampton","Highways Maintenance","Carver (Wolverhampton) Limited","Petrol","24.86","R3000","01/04/15","All VAT recoverable"
"Wolverhampton City Council","http://opendatacommunities.org/id/metropolitan-district-council/wolverhampton","Engineering & Civic Centre","ERF Electrical Wholesalers Limited","Materials","104.00","R4007","01/04/15","All VAT recoverable"
"Wolverhampton City Council","http://opendatacommunities.org/id/metropolitan-district-council/wolverhampton","Schools","BCC Mac T/A St Edmund�s Catholic","Grant Payments","2,598.03","R4700","01/04/15","All VAT recoverable"
"Wolverhampton City Council","http://opendatacommunities.org/id/metropolitan-district-council/wolverhampton","Engineering & Civic Centre","ERF Electrical Wholesalers Limited","Materials","92.50","R4007","01/04/15","All VAT recoverable"
"Wolverhampton City Council","http://opendatacommunities.org/id/metropolitan-district-council/wolverhampton","Engineering & Civic Centre","ERF Electrical Wholesalers Limited","Materials","100.52","R4007","01/04/15","All VAT recoverable"
"Wolverhampton City Council","http://opendatacommunities.org/id/metropolitan-district-council/wolverhampton","Engineering & Civic Centre","ERF Electrical Wholesalers Limited","Materials","20.93","R4007","01/04/15","All VAT recoverable"
"Wolverhampton City Council","http://opendatacommunities.org/id/metropolitan-district-council/wolverhampton","Social Inclusion & Play Service","Base 25","TPP - Social Care Support Services","270.00","R5501","01/04/15","All VAT recoverable"
"Wolverhampton City Council","http://opendatacommunities.org/id/metropolitan-district-council/wolverhampton","Schools","BCC Mac T/A St Michaels Catholic","Grant Payments","3,941.86","R4700","01/04/15","All VAT recoverable"
"Wolverhampton City Council","http://opendatacommunities.org/id/metropolitan-district-council/wolverhampton","Older People Provider Services","Arthur Brett (Catering) Limited","Provisions (Resale)","48.34","R4102","01/04/15","All VAT recoverable"
"Wolverhampton City Council","http://opendatacommunities.org/id/metropolitan-district-council/wolverhampton","Learning Disability Provider","Eden Brown Limited","Agency Staff","160.30","R1100","01/04/15","All VAT recoverable"
"Wolverhampton City Council","http://opendatacommunities.org/id/metropolitan-district-council/wolverhampton","Engineering & Civic Centre","ERF Electrical Wholesalers Limited","Materials","714.78","R4007","01/04/15","All VAT recoverable"
"Wolverhampton City Council","http://opendatacommunities.org/id/metropolitan-district-council/wolverhampton","Learning Disability Provider","Eden Brown Limited","Agency Staff","298.41","R1100","01/04/15","All VAT recoverable"
"Wolverhampton City Council","http://opendatacommunities.org/id/metropolitan-district-council/wolverhampton","Learning Disability Provider","Eden Brown Limited","Agency Staff","296.56","R1100","01/04/15","All VAT recoverable"
"Wolverhampton City Council","http://opendatacommunities.org/id/metropolitan-district-council/wolverhampton","Childrens Centres & Early Years","Eyears","Agency Staff","636.00","R1100","01/04/15","All VAT recoverable"
"Wolverhampton City Council","http://opendatacommunities.org/id/metropolitan-district-council/wolverhampton","Learning Disability Provider","Eden Brown Limited","Agency Staff","73.15","R1100","01/04/15","All VAT recoverable"
"Wolverhampton City Council","http://opendatacommunities.org/id/metropolitan-district-council/wolverhampton","Safeguarding","Birmingham CC - General Fund","Training Expenses","15.00","R1650","01/04/15","All VAT recoverable"
"Wolverhampton City Council","http://opendatacommunities.org/id/metropolitan-district-council/wolverhampton","Schools","ECMAT - Smestow School","Grant Payments","6,344.85","R4700","01/04/15","All VAT recoverable"
"Wolverhampton City Council","http://opendatacommunities.org/id/metropolitan-district-council/wolverhampton","","Jacobs U.K.Limited","Construction and Conversion","480.00","C1100","01/04/15","All VAT recoverable"
"Wolverhampton City Council","http://opendatacommunities.org/id/metropolitan-district-council/wolverhampton","HR Advice","Extra Personnel Limited","Agency Staff","487.60","R1100","01/04/15","All VAT recoverable"
"Wolverhampton City Council","http://opendatacommunities.org/id/metropolitan-district-council/wolverhampton","Schools","ECMAT - Smestow School","Grant Payments","2,615.95","R4700","01/04/15","All VAT recoverable"
"Wolverhampton City Council","http://opendatacommunities.org/id/metropolitan-district-council/wolverhampton","Regulatory Services","Enviro Technology Services PLC","Services - Professional Fees","1,502.57","R4400","01/04/15","All VAT recoverable"
"Wolverhampton City Council","http://opendatacommunities.org/id/metropolitan-district-council/wolverhampton","Learning Disability Provider","Eden Brown Limited","Agency Staff","387.12","R1100","01/04/15","All VAT recoverable"
"Wolverhampton City Council","http://opendatacommunities.org/id/metropolitan-district-council/wolverhampton","Learning Disability Provider","Eden Brown Limited","Agency Staff","161.30","R1100","01/04/15","All VAT recoverable"
"Wolverhampton City Council","http://opendatacommunities.org/id/metropolitan-district-council/wolverhampton","Learning Disability Provider","Eden Brown Limited","Agency Staff","338.73","R1100","01/04/15","All VAT recoverable"
"Wolverhampton City Council","http://opendatacommunities.org/id/metropolitan-district-council/wolverhampton","Learning Disability Provider","Eden Brown Limited","Agency Staff","146.30","R1100","01/04/15","All VAT recoverable"
"Wolverhampton City Council","http://opendatacommunities.org/id/metropolitan-district-council/wolverhampton","Culture Arts & Heritage","C�Art Art Transport Limited","Services - Professional Fees","625.00","R4400","01/04/15","All VAT recoverable"
"Wolverhampton City Council","http://opendatacommunities.org/id/metropolitan-district-council/wolverhampton","Revenues & Benefits","Eden Brown Limited","Agency Staff","1,959.75","R1100","01/04/15","All VAT recoverable"
"Wolverhampton City Council","http://opendatacommunities.org/id/metropolitan-district-council/wolverhampton","Culture Arts & Heritage","C�Art Art Transport Limited","Comms - Postage","665.00","R4503","01/04/15","All VAT recoverable"
"Wolverhampton City Council","http://opendatacommunities.org/id/metropolitan-district-council/wolverhampton","Childrens Centres & Early Years","Blakenhall Neighbourhood Nursery","Grant Payments","10,962.50","R4700","01/04/15","All VAT recoverable"
"Wolverhampton City Council","http://opendatacommunities.org/id/metropolitan-district-council/wolverhampton","Fleet Services","Evans Halshaw Ford","Equipment - Purchase","12.85","R4000","01/04/15","All VAT recoverable"
"Wolverhampton City Council","http://opendatacommunities.org/id/metropolitan-district-council/wolverhampton","Highways Maintenance","Carver (Wolverhampton) Limited","Petrol","19.83","R3000","01/04/15","All VAT recoverable"
"Wolverhampton City Council","http://opendatacommunities.org/id/metropolitan-district-council/wolverhampton","Property Services","Jacobs U.K.Limited","Services - Professional Fees","11,328.00","R4400","01/04/15","All VAT recoverable"
"Wolverhampton City Council","http://opendatacommunities.org/id/metropolitan-district-council/wolverhampton","Safeguarding","Entrust Social Care Limited","Agency Staff","1,634.57","R1100","01/04/15","All VAT recoverable"
"Wolverhampton City Council","http://opendatacommunities.org/id/metropolitan-district-council/wolverhampton","Strategic Financial Services","Badenoch & Clark Recruit. Specialist","Agency Staff","890.63","R1100","01/04/15","All VAT recoverable"
"Wolverhampton City Council","http://opendatacommunities.org/id/metropolitan-district-council/wolverhampton","Children in Need & Child Protection","Entrust Social Care Limited","Agency Staff","1,480.00","R1100","01/04/15","All VAT recoverable"
"Wolverhampton City Council","http://opendatacommunities.org/id/metropolitan-district-council/wolverhampton","Service Director City Assets","Badenoch & Clark Recruit. Specialist","Agency Staff","1,414.20","R1100","01/04/15","All VAT recoverable"
"Wolverhampton City Council","http://opendatacommunities.org/id/metropolitan-district-council/wolverhampton","Strategic Financial Services","Badenoch & Clark Recruit. Specialist","Agency Staff","1,370.67","R1100","01/04/15","All VAT recoverable"
"Wolverhampton City Council","http://opendatacommunities.org/id/metropolitan-district-council/wolverhampton","Strategic Financial Services","Badenoch & Clark Recruit. Specialist","Agency Staff","2,713.50","R1100","01/04/15","All VAT recoverable"
"Wolverhampton City Council","http://opendatacommunities.org/id/metropolitan-district-council/wolverhampton","Service Director City Assets","Badenoch & Clark Recruit. Specialist","Agency Staff","1,414.20","R1100","01/04/15","All VAT recoverable"
"Wolverhampton City Council","http://opendatacommunities.org/id/metropolitan-district-council/wolverhampton","HR Advice","Badenoch & Clark Recruit. Specialist","Agency Staff","706.15","R1100","01/04/15","All VAT recoverable"
"Wolverhampton City Council","http://opendatacommunities.org/id/metropolitan-district-council/wolverhampton","Strategic Financial Services","Badenoch & Clark Recruit. Specialist","Agency Staff","1,588.23","R1100","01/04/15","All VAT recoverable"
"Wolverhampton City Council","http://opendatacommunities.org/id/metropolitan-district-council/wolverhampton","Strategic Financial Services","Badenoch & Clark Recruit. Specialist","Agency Staff","2,050.00","R1100","01/04/15","All VAT recoverable"
"Wolverhampton City Council","http://opendatacommunities.org/id/metropolitan-district-council/wolverhampton","HR Advice","Badenoch & Clark Recruit. Specialist","Agency Staff","735.19","R1100","01/04/15","All VAT recoverable"
"Wolverhampton City Council","http://opendatacommunities.org/id/metropolitan-district-council/wolverhampton","HR Advice","Badenoch & Clark Recruit. Specialist","Agency Staff","735.19","R1100","01/04/15","All VAT recoverable"
"Wolverhampton City Council","http://opendatacommunities.org/id/metropolitan-district-council/wolverhampton","Safeguarding","Entrust Social Care Limited","Agency Staff","1,493.69","R1100","01/04/15","All VAT recoverable"
"Wolverhampton City Council","http://opendatacommunities.org/id/metropolitan-district-council/wolverhampton","Children in Need & Child Protection","Entrust Social Care Limited","Agency Staff","1,332.00","R1100","01/04/15","All VAT recoverable"
"Wolverhampton City Council","http://opendatacommunities.org/id/metropolitan-district-council/wolverhampton","Children in Need & Child Protection","Entrust Social Care Limited","Agency Staff","1,480.00","R1100","01/04/15","All VAT recoverable"
"Wolverhampton City Council","http://opendatacommunities.org/id/metropolitan-district-council/wolverhampton","ICTS","Acuma Solutions Limited","Computing - Maint Agreements","19,135.74","R4534","01/04/15","All VAT recoverable"
"Wolverhampton City Council","http://opendatacommunities.org/id/metropolitan-district-council/wolverhampton","Bereavement Services","J.Walsh Designs","Services - Professional Fees","216.00","R4400","01/04/15","All VAT recoverable"
"Wolverhampton City Council","http://opendatacommunities.org/id/metropolitan-district-council/wolverhampton","Waste and Recycling Service","Enterprise Managed Services Limited","TPP - Waste Disposal","41,600.00","R5003","01/04/15","All VAT recoverable"
"Wolverhampton City Council","http://opendatacommunities.org/id/metropolitan-district-council/wolverhampton","Older People Provider Services","Enterprise Managed Services Limited","Agency Staff","389.27","R1100","01/04/15","All VAT recoverable"
"Wolverhampton City Council","http://opendatacommunities.org/id/metropolitan-district-council/wolverhampton","Children in Need & Child Protection","Entrust Social Care Limited","Agency Staff","1,332.00","R1100","01/04/15","All VAT recoverable"
"Wolverhampton City Council","http://opendatacommunities.org/id/metropolitan-district-council/wolverhampton","Children in Need & Child Protection","Entrust Social Care Limited","Agency Staff","1,369.00","R1100","01/04/15","All VAT recoverable"
"Wolverhampton City Council","http://opendatacommunities.org/id/metropolitan-district-council/wolverhampton","Strategic Financial Services","Badenoch & Clark Recruit. Specialist","Agency Staff","3,015.00","R1100","01/04/15","All VAT recoverable"
"Wolverhampton City Council","http://opendatacommunities.org/id/metropolitan-district-council/wolverhampton","Engineering & Civic Centre","Enterprise Managed Services Limited","TPP - Waste Disposal","41.50","R5003","01/04/15","All VAT recoverable"
"Wolverhampton City Council","http://opendatacommunities.org/id/metropolitan-district-council/wolverhampton","Fleet Services","Autodata Limited","Stationery","79.50","R4308","01/04/15","All VAT recoverable"
"Wolverhampton City Council","http://opendatacommunities.org/id/metropolitan-district-council/wolverhampton","Social Inclusion & Play Service","Auto Time Solutions Limited","Computing - Maint Agreements","89.00","R4534","01/04/15","All VAT recoverable"
"Wolverhampton City Council","http://opendatacommunities.org/id/metropolitan-district-council/wolverhampton","Fleet Services","Jackdaw (Tools) Limited","Equipment - Purchase","11.71","R4000","01/04/15","All VAT recoverable"
"Wolverhampton City Council","http://opendatacommunities.org/id/metropolitan-district-council/wolverhampton","Strategic Financial Services","Badenoch & Clark Recruit. Specialist","Agency Staff","819.91","R1100","01/04/15","All VAT recoverable"
"Wolverhampton City Council","http://opendatacommunities.org/id/metropolitan-district-council/wolverhampton","Children in Need & Child Protection","Entrust Social Care Limited","Agency Staff","1,554.00","R1100","01/04/15","All VAT recoverable"
"Wolverhampton City Council","http://opendatacommunities.org/id/metropolitan-district-council/wolverhampton","Learning Disability Provider","Enterprise Managed Services Limited","TPP - Waste Disposal","1,488.40","R5003","01/04/15","All VAT recoverable"
"Wolverhampton City Council","http://opendatacommunities.org/id/metropolitan-district-council/wolverhampton","Older People Assessment & Care Management","Enterprise Managed Services Limited","TPP - Waste Disposal","723.24","R5003","01/04/15","All VAT recoverable"
"Wolverhampton City Council","http://opendatacommunities.org/id/metropolitan-district-council/wolverhampton","School Planning & Resources","Enable Technology Training Limited","Training Expenses","995.00","R1650","01/04/15","All VAT recoverable"
"Wolverhampton City Council","http://opendatacommunities.org/id/metropolitan-district-council/wolverhampton","Housing","Empty Homes Network","Subscriptions","95.00","R4701","01/04/15","All VAT recoverable"
"Wolverhampton City Council","http://opendatacommunities.org/id/metropolitan-district-council/wolverhampton","Childrens Centres & Early Years","Eduzone Limited","Equipment - Purchase","399.00","R4000","01/04/15","All VAT recoverable"
"Wolverhampton City Council","http://opendatacommunities.org/id/metropolitan-district-council/wolverhampton","Waste and Recycling Service","Enterprise Managed Services Limited","TPP - Waste Disposal","28.30","R5003","01/04/15","All VAT recoverable"
"Wolverhampton City Council","http://opendatacommunities.org/id/metropolitan-district-council/wolverhampton","Highways Maintenance","Burdens Limited","TPP - Maintenance on Other Roads","-78.08","R5710","01/04/15","All VAT recoverable"
"Wolverhampton City Council","http://opendatacommunities.org/id/metropolitan-district-council/wolverhampton","Highways Maintenance","Burdens Limited","TPP - Maintenance on Other Roads","26.75","R5710","01/04/15","All VAT recoverable"
"Wolverhampton City Council","http://opendatacommunities.org/id/metropolitan-district-council/wolverhampton","","Cpl Petroleum","Inventories","18,219.10","B3000","01/04/15","All VAT recoverable"
"Wolverhampton City Council","http://opendatacommunities.org/id/metropolitan-district-council/wolverhampton","","Cpl Petroleum","Inventories","676.05","B3000","01/04/15","All VAT recoverable"
"Wolverhampton City Council","http://opendatacommunities.org/id/metropolitan-district-council/wolverhampton","School Planning & Resources","BT (Business)","Comms - Postage","7.00","R4503","01/04/15","All VAT recoverable"
"Wolverhampton City Council","http://opendatacommunities.org/id/metropolitan-district-council/wolverhampton","School Planning & Resources","Cpl Petroleum","Heating Oil","975.80","R2102","01/04/15","All VAT recoverable"
"Wolverhampton City Council","http://opendatacommunities.org/id/metropolitan-district-council/wolverhampton","School Planning & Resources","BT (Business)","Computing - Purchase of Hardware","54.49","R4530","01/04/15","All VAT recoverable"
"Wolverhampton City Council","http://opendatacommunities.org/id/metropolitan-district-council/wolverhampton","School Planning & Resources","BT (Business)","Computing - Purchase of Hardware","8.00","R4530","01/04/15","All VAT recoverable"
"Wolverhampton City Council","http://opendatacommunities.org/id/metropolitan-district-council/wolverhampton","School Planning & Resources","BT (Business)","Computing - Purchase of Hardware","260.34","R4530","01/04/15","All VAT recoverable"
"Wolverhampton City Council","http://opendatacommunities.org/id/metropolitan-district-council/wolverhampton","Street Lighting","Burdens Limited","Materials","125.40","R4007","01/04/15","All VAT recoverable"
"Wolverhampton City Council","http://opendatacommunities.org/id/metropolitan-district-council/wolverhampton","ICTS","Bytes Software Services Limited","Services - General Licences","4,565.00","R4402","01/04/15","All VAT recoverable"
"Wolverhampton City Council","http://opendatacommunities.org/id/metropolitan-district-council/wolverhampton","","CP Bigwood Limited","Construction and Conversion","60.00","C1100","01/04/15","All VAT recoverable"
"Wolverhampton City Council","http://opendatacommunities.org/id/metropolitan-district-council/wolverhampton","Estates and Valuations","CP Bigwood Limited","Services - Professional Fees","60.00","R4400","01/04/15","All VAT recoverable"
"Wolverhampton City Council","http://opendatacommunities.org/id/metropolitan-district-council/wolverhampton","Childrens Centres & Early Years","Butterflies Play Hut","TPP - Private Nursery Education Funding","1,749.40","R5035","01/04/15","All VAT recoverable"
"Wolverhampton City Council","http://opendatacommunities.org/id/metropolitan-district-council/wolverhampton","Adult Education","D C Nutt","R&M - Departmental planned (internal)","92.00","R2000","01/04/15","All VAT recoverable"
"Wolverhampton City Council","http://opendatacommunities.org/id/metropolitan-district-council/wolverhampton","Catering","Court Catering Equipment Limited","Equipment - Catering","1,940.05","R4010","01/04/15","All VAT recoverable"
"Wolverhampton City Council","http://opendatacommunities.org/id/metropolitan-district-council/wolverhampton","","Cpl Petroleum","Inventories","18,142.00","B3000","01/04/15","All VAT recoverable"
"Wolverhampton City Council","http://opendatacommunities.org/id/metropolitan-district-council/wolverhampton","School Planning & Resources","BT (Business)","Computing - Purchase of Hardware","870.00","R4530","01/04/15","All VAT recoverable"
"Wolverhampton City Council","http://opendatacommunities.org/id/metropolitan-district-council/wolverhampton","","Bytes Software Services Limited","Intangible Assets / Computer Software","22,947.10","C4005","01/04/15","All VAT recoverable"
"Wolverhampton City Council","http://opendatacommunities.org/id/metropolitan-district-council/wolverhampton","Transportation","BT Global","TPP - Rechargeable Works Costs","14,659.71","R5730","01/04/15","All VAT recoverable"
"Wolverhampton City Council","http://opendatacommunities.org/id/metropolitan-district-council/wolverhampton","Childrens Centres & Early Years","Bushbury Triangle Neighbour.Nursery","Grant Payments","20,407.50","R4700","01/04/15","All VAT recoverable"
"Wolverhampton City Council","http://opendatacommunities.org/id/metropolitan-district-council/wolverhampton","Transformation","Crisis Prevention Institute,Inc.","Training Expenses","1,300.00","R1650","01/04/15","All VAT recoverable"
"Wolverhampton City Council","http://opendatacommunities.org/id/metropolitan-district-council/wolverhampton","Transportation","BT Global","Equipment - Hire","51,048.32","R4001","01/04/15","All VAT recoverable"
"Wolverhampton City Council","http://opendatacommunities.org/id/metropolitan-district-council/wolverhampton","","BT Global","Construction and Conversion","46,710.71","C1100","01/04/15","All VAT recoverable"
"Wolverhampton City Council","http://opendatacommunities.org/id/metropolitan-district-council/wolverhampton","","BT Global","Construction and Conversion","9,264.40","C1100","01/04/15","All VAT recoverable"
"Wolverhampton City Council","http://opendatacommunities.org/id/metropolitan-district-council/wolverhampton","","BT Global","Construction and Conversion","8,357.39","C1100","01/04/15","All VAT recoverable"
"Wolverhampton City Council","http://opendatacommunities.org/id/metropolitan-district-council/wolverhampton","","BT Global","Construction and Conversion","453.50","C1100","01/04/15","All VAT recoverable"
"Wolverhampton City Council","http://opendatacommunities.org/id/metropolitan-district-council/wolverhampton","Transportation","BT Global","Equipment - Hire","12,149.87","R4001","01/04/15","All VAT recoverable"
"Wolverhampton City Council","http://opendatacommunities.org/id/metropolitan-district-council/wolverhampton","Transportation","BT Global","Equipment - Hire","9,155.58","R4001","01/04/15","All VAT recoverable"
"Wolverhampton City Council","http://opendatacommunities.org/id/metropolitan-district-council/wolverhampton","","BT Global","Grants paid out","8,196.41","C5000","01/04/15","All VAT recoverable"
"Wolverhampton City Council","http://opendatacommunities.org/id/metropolitan-district-council/wolverhampton","","BT Global","Grants paid out","6,013.45","C5000","01/04/15","All VAT recoverable"
"Wolverhampton City Council","http://opendatacommunities.org/id/metropolitan-district-council/wolverhampton","","BT Global","Grants paid out","3,642.20","C5000","01/04/15","All VAT recoverable"
"Wolverhampton City Council","http://opendatacommunities.org/id/metropolitan-district-council/wolverhampton","","BT Global","Grants paid out","2,730.18","C5000","01/04/15","All VAT recoverable"
"Wolverhampton City Council","http://opendatacommunities.org/id/metropolitan-district-council/wolverhampton","","BT Global","Grants paid out","4,554.22","C5000","01/04/15","All VAT recoverable"
"Wolverhampton City Council","http://opendatacommunities.org/id/metropolitan-district-council/wolverhampton","","BT Global","Grants paid out","13,662.65","C5000","01/04/15","All VAT recoverable"
"Wolverhampton City Council","http://opendatacommunities.org/id/metropolitan-district-council/wolverhampton","Culture Arts & Heritage","Craftspace Limited","Services - Professional Fees","300.00","R4400","01/04/15","All VAT recoverable"
"Wolverhampton City Council","http://opendatacommunities.org/id/metropolitan-district-council/wolverhampton","Culture Arts & Heritage","Crafts Magazine","Marketing \ Non-staff advertising","86.70","R4317","01/04/15","All VAT recoverable"
"Wolverhampton City Council","http://opendatacommunities.org/id/metropolitan-district-council/wolverhampton","Childrens Centres & Early Years","Butterflies Play Hut","Grant Payments","6,547.50","R4700","01/04/15","All VAT recoverable"
"Wolverhampton City Council","http://opendatacommunities.org/id/metropolitan-district-council/wolverhampton","Looked After Children","Buffets 2 Go","Catering","937.50","R4100","01/04/15","All VAT recoverable"
"Wolverhampton City Council","http://opendatacommunities.org/id/metropolitan-district-council/wolverhampton","Management and Administration","Cycle Actifit Community Interest Co.","Equipment - Purchase","560.00","R4000","01/04/15","All VAT recoverable"
"Wolverhampton City Council","http://opendatacommunities.org/id/metropolitan-district-council/wolverhampton","Management and Administration","Cycle Actifit Community Interest Co.","Equipment - Purchase","-560.00","R4000","01/04/15","All VAT recoverable"
"Wolverhampton City Council","http://opendatacommunities.org/id/metropolitan-district-council/wolverhampton","","CTT (Wolverhampton) Limited","Construction and Conversion","-1,625.00","C1100","01/04/15","All VAT recoverable"
"Wolverhampton City Council","http://opendatacommunities.org/id/metropolitan-district-council/wolverhampton","","Cyclepods Limited","Plant, Equipment, Machinery & Computer Hardware","4,231.50","C3000","01/04/15","All VAT recoverable"
"Wolverhampton City Council","http://opendatacommunities.org/id/metropolitan-district-council/wolverhampton","","CTT (Wolverhampton) Limited","Construction and Conversion","1,625.00","C1100","01/04/15","All VAT recoverable"
"Wolverhampton City Council","http://opendatacommunities.org/id/metropolitan-district-council/wolverhampton","","CTT (Wolverhampton) Limited","Construction and Conversion","1,625.00","C1100","01/04/15","All VAT recoverable"
"Wolverhampton City Council","http://opendatacommunities.org/id/metropolitan-district-council/wolverhampton","Fleet Services","Burnt Tree Group Limited","Hire of Vehicles","1,100.00","R3200","01/04/15","All VAT recoverable"
"Wolverhampton City Council","http://opendatacommunities.org/id/metropolitan-district-council/wolverhampton","Management and Administration","Cycle Actifit Community Interest Co.","Equipment - Purchase","560.00","R4000","01/04/15","All VAT recoverable"
"Wolverhampton City Council","http://opendatacommunities.org/id/metropolitan-district-council/wolverhampton","Fleet Services","Burnt Tree Group Limited","Hire of Vehicles","1,040.00","R3200","01/04/15","All VAT recoverable"
"Wolverhampton City Council","http://opendatacommunities.org/id/metropolitan-district-council/wolverhampton","Childrens Centres & Early Years","D & G Educational Limited","Equipment - Purchase","74.50","R4000","01/04/15","All VAT recoverable"
"Wolverhampton City Council","http://opendatacommunities.org/id/metropolitan-district-council/wolverhampton","Childrens Centres & Early Years","D & G Educational Limited","Equipment - Purchase","320.00","R4000","01/04/15","All VAT recoverable"
"Wolverhampton City Council","http://opendatacommunities.org/id/metropolitan-district-council/wolverhampton","","BT Global","Grants paid out","20,040.90","C5000","01/04/15","All VAT recoverable"
"Wolverhampton City Council","http://opendatacommunities.org/id/metropolitan-district-council/wolverhampton","Fleet Services","Burnt Tree Group Limited","Hire of Vehicles","1,100.00","R3200","01/04/15","All VAT recoverable"
"Wolverhampton City Council","http://opendatacommunities.org/id/metropolitan-district-council/wolverhampton","","Domestic Gas Services Limited","Grants paid out","3,373.40","C5000","01/04/15","All VAT recoverable"
"Wolverhampton City Council","http://opendatacommunities.org/id/metropolitan-district-council/wolverhampton","Looked After Children","Core Assets Childrens Services","TPP - Social Care Support Services","1,960.00","R5501","01/04/15","All VAT recoverable"
"Wolverhampton City Council","http://opendatacommunities.org/id/metropolitan-district-council/wolverhampton","Children in Need & Child Protection","Capita Resourcing Limited","Agency Staff","1,193.25","R1100","01/04/15","All VAT recoverable"
"Wolverhampton City Council","http://opendatacommunities.org/id/metropolitan-district-council/wolverhampton","Children in Need & Child Protection","Capita Resourcing Limited","Agency Staff","1,415.25","R1100","01/04/15","All VAT recoverable"
"Wolverhampton City Council","http://opendatacommunities.org/id/metropolitan-district-council/wolverhampton","Children in Need & Child Protection","Capita Resourcing Limited","Agency Staff","1,415.25","R1100","01/04/15","All VAT recoverable"
"Wolverhampton City Council","http://opendatacommunities.org/id/metropolitan-district-council/wolverhampton","Mental Health Provider","Dodd Group (Midlands)Limited","Computing - Purchase of Hardware","1,350.00","R4530","01/04/15","All VAT recoverable"
"Wolverhampton City Council","http://opendatacommunities.org/id/metropolitan-district-council/wolverhampton","","Domestic Gas Services Limited","Grants paid out","3,955.00","C5000","01/04/15","All VAT recoverable"
"Wolverhampton City Council","http://opendatacommunities.org/id/metropolitan-district-council/wolverhampton","Fleet Services","Commercial Body Fittings Limited","Equipment - Purchase","129.20","R4000","01/04/15","All VAT recoverable"
"Wolverhampton City Council","http://opendatacommunities.org/id/metropolitan-district-council/wolverhampton","Culture Arts & Heritage","Dr Chris Upton","Services - Professional Fees","140.00","R4400","01/04/15","All VAT recoverable"
"Wolverhampton City Council","http://opendatacommunities.org/id/metropolitan-district-council/wolverhampton","Culture Arts & Heritage","Dr Chris Upton","Services - Professional Fees","250.00","R4400","01/04/15","All VAT recoverable"
"Wolverhampton City Council","http://opendatacommunities.org/id/metropolitan-district-council/wolverhampton","Looked After Children","Blue Group Interntl Limited T/A Bluecare","Agency Staff","1,110.00","R1100","01/04/15","All VAT recoverable"
"Wolverhampton City Council","http://opendatacommunities.org/id/metropolitan-district-council/wolverhampton","","Cleveland Land Services Limited","Construction and Conversion","6,373.73","C1100","01/04/15","All VAT recoverable"
"Wolverhampton City Council","http://opendatacommunities.org/id/metropolitan-district-council/wolverhampton","Revenues & Benefits","Bristow & Sutor","Services - Professional Fees","218.79","R4400","01/04/15","All VAT recoverable"
"Wolverhampton City Council","http://opendatacommunities.org/id/metropolitan-district-council/wolverhampton","Housing Revenue Account","British Gas Trading Limited","Electricity","115.74","R2100","01/04/15","All VAT recoverable"
"Wolverhampton City Council","http://opendatacommunities.org/id/metropolitan-district-council/wolverhampton","Housing Revenue Account","British Gas Trading Limited","Electricity","759.73","R2100","01/04/15","All VAT recoverable"
"Wolverhampton City Council","http://opendatacommunities.org/id/metropolitan-district-council/wolverhampton","Visitor Economy","Boc Limited","Equipment - Purchase","121.25","R4000","01/04/15","All VAT recoverable"
"Wolverhampton City Council","http://opendatacommunities.org/id/metropolitan-district-council/wolverhampton","Catering","Coca-Cola Enterprises Limited","Provisions (Resale)","164.48","R4102","01/04/15","All VAT recoverable"
"Wolverhampton City Council","http://opendatacommunities.org/id/metropolitan-district-council/wolverhampton","Catering","Coca-Cola Enterprises Limited","Provisions (Resale)","247.15","R4102","01/04/15","All VAT recoverable"
"Wolverhampton City Council","http://opendatacommunities.org/id/metropolitan-district-council/wolverhampton","Catering","Coca-Cola Enterprises Limited","Provisions (Resale)","172.48","R4102","01/04/15","All VAT recoverable"
"Wolverhampton City Council","http://opendatacommunities.org/id/metropolitan-district-council/wolverhampton","Catering","Coca-Cola Enterprises Limited","Provisions (Resale)","168.18","R4102","01/04/15","All VAT recoverable"
"Wolverhampton City Council","http://opendatacommunities.org/id/metropolitan-district-council/wolverhampton","Housing Revenue Account","British Gas Trading Limited","Electricity","44.48","R2100","01/04/15","All VAT recoverable"
"Wolverhampton City Council","http://opendatacommunities.org/id/metropolitan-district-council/wolverhampton","Safeguarding","Dr M Rehman","Services - Consultants","1,432.80","R4404","01/04/15","All VAT recoverable"
"Wolverhampton City Council","http://opendatacommunities.org/id/metropolitan-district-council/wolverhampton","Looked After Children","Core Assets Childrens Services","TPP - Social Care Support Services","735.00","R5501","01/04/15","All VAT recoverable"
"Wolverhampton City Council","http://opendatacommunities.org/id/metropolitan-district-council/wolverhampton","Revenues & Benefits","Bristow & Sutor","Services - Professional Fees","1,667.54","R4400","01/04/15","All VAT recoverable"
"Wolverhampton City Council","http://opendatacommunities.org/id/metropolitan-district-council/wolverhampton","Safeguarding","Dr. Perrinbanayagam Aiyadurai","Services - Consultants","959.00","R4404","01/04/15","All VAT recoverable"
"Wolverhampton City Council","http://opendatacommunities.org/id/metropolitan-district-council/wolverhampton","Looked After Children","Core Assets Childrens Services","TPP - Social Care Support Services","2,450.00","R5501","01/04/15","All VAT recoverable"
"Wolverhampton City Council","http://opendatacommunities.org/id/metropolitan-district-council/wolverhampton","Children in Need & Child Protection","Blue Group Interntl Limited T/A Bluecare","Agency Staff","1,369.00","R1100","01/04/15","All VAT recoverable"
"Wolverhampton City Council","http://opendatacommunities.org/id/metropolitan-district-council/wolverhampton","Looked After Children","Blue Group Interntl Limited T/A Bluecare","Agency Staff","8.10","R1100","01/04/15","All VAT recoverable"
"Wolverhampton City Council","http://opendatacommunities.org/id/metropolitan-district-council/wolverhampton","Looked After Children","Blue Group Interntl Limited T/A Bluecare","Agency Staff","573.50","R1100","01/04/15","All VAT recoverable"
"Wolverhampton City Council","http://opendatacommunities.org/id/metropolitan-district-council/wolverhampton","Looked After Children","Blue Group Interntl Limited T/A Bluecare","Agency Staff","25.65","R1100","01/04/15","All VAT recoverable"
"Wolverhampton City Council","http://opendatacommunities.org/id/metropolitan-district-council/wolverhampton","Looked After Children","Blue Group Interntl Limited T/A Bluecare","Agency Staff","5.40","R1100","01/04/15","All VAT recoverable"
"Wolverhampton City Council","http://opendatacommunities.org/id/metropolitan-district-council/wolverhampton","Parking Services","Capitol Mobility Services Limited","Equipment - R & M","55.00","R4003","01/04/15","All VAT recoverable"
"Wolverhampton City Council","http://opendatacommunities.org/id/metropolitan-district-council/wolverhampton","Looked After Children","Blue Group Interntl Limited T/A Bluecare","Agency Staff","17.55","R1100","01/04/15","All VAT recoverable"
"Wolverhampton City Council","http://opendatacommunities.org/id/metropolitan-district-council/wolverhampton","Children in Need & Child Protection","Blue Group Interntl Limited T/A Bluecare","Agency Staff","166.50","R1100","01/04/15","All VAT recoverable"
"Wolverhampton City Council","http://opendatacommunities.org/id/metropolitan-district-council/wolverhampton","Children in Need & Child Protection","Blue Group Interntl Limited T/A Bluecare","Agency Staff","1,575.00","R1100","01/04/15","All VAT recoverable"
"Wolverhampton City Council","http://opendatacommunities.org/id/metropolitan-district-council/wolverhampton","Children in Need & Child Protection","Blue Group Interntl Limited T/A Bluecare","Agency Staff","1,482.70","R1100","01/04/15","All VAT recoverable"
"Wolverhampton City Council","http://opendatacommunities.org/id/metropolitan-district-council/wolverhampton","Children in Need & Child Protection","Blue Group Interntl Limited T/A Bluecare","Agency Staff","16.65","R1100","01/04/15","All VAT recoverable"
"Wolverhampton City Council","http://opendatacommunities.org/id/metropolitan-district-council/wolverhampton","Children in Need & Child Protection","Blue Group Interntl Limited T/A Bluecare","Agency Staff","1,482.70","R1100","01/04/15","All VAT recoverable"
"Wolverhampton City Council","http://opendatacommunities.org/id/metropolitan-district-council/wolverhampton","Children in Need & Child Protection","Blue Group Interntl Limited T/A Bluecare","Agency Staff","1,484.50","R1100","01/04/15","All VAT recoverable"
"Wolverhampton City Council","http://opendatacommunities.org/id/metropolitan-district-council/wolverhampton","Children in Need & Child Protection","Blue Group Interntl Limited T/A Bluecare","Agency Staff","1,404.50","R1100","01/04/15","All VAT recoverable"
"Wolverhampton City Council","http://opendatacommunities.org/id/metropolitan-district-council/wolverhampton","Children in Need & Child Protection","Blue Group Interntl Limited T/A Bluecare","Agency Staff","16.65","R1100","01/04/15","All VAT recoverable"
"Wolverhampton City Council","http://opendatacommunities.org/id/metropolitan-district-council/wolverhampton","Children in Need & Child Protection","Blue Group Interntl Limited T/A Bluecare","Agency Staff","22.50","R1100","01/04/15","All VAT recoverable"
"Wolverhampton City Council","http://opendatacommunities.org/id/metropolitan-district-council/wolverhampton","Children in Need & Child Protection","Blue Group Interntl Limited T/A Bluecare","Agency Staff","1,480.00","R1100","01/04/15","All VAT recoverable"
"Wolverhampton City Council","http://opendatacommunities.org/id/metropolitan-district-council/wolverhampton","Children in Need & Child Protection","Blue Group Interntl Limited T/A Bluecare","Agency Staff","1,369.00","R1100","01/04/15","All VAT recoverable"
"Wolverhampton City Council","http://opendatacommunities.org/id/metropolitan-district-council/wolverhampton","Special Educational Needs","Connevans Limited","Comms - Postage","7.95","R4503","01/04/15","All VAT recoverable"
"Wolverhampton City Council","http://opendatacommunities.org/id/metropolitan-district-council/wolverhampton","Special Educational Needs","Connevans Limited","Equipment - Purchase","40.24","R4000","01/04/15","All VAT recoverable"
"Wolverhampton City Council","http://opendatacommunities.org/id/metropolitan-district-council/wolverhampton","The Hub","Bottomline Technologies Europe Limited","Computing - Purchase of Software","440.00","R4531","01/04/15","All VAT recoverable"
"Wolverhampton City Council","http://opendatacommunities.org/id/metropolitan-district-council/wolverhampton","Short Breaks Commissioning","Bourne Leisure Limited","TPP - Short Breaks","6,292.13","R5500","01/04/15","All VAT recoverable"
"Wolverhampton City Council","http://opendatacommunities.org/id/metropolitan-district-council/wolverhampton","Children in Need & Child Protection","Caritas Recruitment Limited","Agency Staff","1,473.20","R1100","01/04/15","All VAT recoverable"
"Wolverhampton City Council","http://opendatacommunities.org/id/metropolitan-district-council/wolverhampton","Children in Need & Child Protection","Caritas Recruitment Limited","Agency Staff","1,477.03","R1100","01/04/15","All VAT recoverable"
"Wolverhampton City Council","http://opendatacommunities.org/id/metropolitan-district-council/wolverhampton","Children in Need & Child Protection","Caritas Recruitment Limited","Agency Staff","1,501.96","R1100","01/04/15","All VAT recoverable"
"Wolverhampton City Council","http://opendatacommunities.org/id/metropolitan-district-council/wolverhampton","Children in Need & Child Protection","Blue Group Interntl Limited T/A Bluecare","Agency Staff","1,480.00","R1100","01/04/15","All VAT recoverable"
"Wolverhampton City Council","http://opendatacommunities.org/id/metropolitan-district-council/wolverhampton","Children in Need & Child Protection","Caritas Recruitment Limited","Agency Staff","1,461.50","R1100","01/04/15","All VAT recoverable"
"Wolverhampton City Council","http://opendatacommunities.org/id/metropolitan-district-council/wolverhampton","Children in Need & Child Protection","Caritas Recruitment Limited","Agency Staff","1,616.90","R1100","01/04/15","All VAT recoverable"
"Wolverhampton City Council","http://opendatacommunities.org/id/metropolitan-district-council/wolverhampton","Children in Need & Child Protection","Caritas Recruitment Limited","Agency Staff","2,620.95","R1100","01/04/15","All VAT recoverable"
"Wolverhampton City Council","http://opendatacommunities.org/id/metropolitan-district-council/wolverhampton","Children in Need & Child Protection","Caritas Recruitment Limited","Agency Staff","1,369.63","R1100","01/04/15","All VAT recoverable"
"Wolverhampton City Council","http://opendatacommunities.org/id/metropolitan-district-council/wolverhampton","Youth Services","British Youth Council","Subscriptions","400.00","R4701","01/04/15","All VAT recoverable"
"Wolverhampton City Council","http://opendatacommunities.org/id/metropolitan-district-council/wolverhampton","Looked After Children","Braitch Solicitors","Services - Professional Fees","297.00","R4400","01/04/15","All VAT recoverable"
"Wolverhampton City Council","http://opendatacommunities.org/id/metropolitan-district-council/wolverhampton","Safeguarding","Mumtaz & Sadaf Ltd","Services - Consultants","2,315.80","R4404","01/04/15","All VAT recoverable"
"Wolverhampton City Council","http://opendatacommunities.org/id/metropolitan-district-council/wolverhampton","HR Advice","Bradley Environmental Consultant Limited","Training Expenses","400.00","R1650","01/04/15","All VAT recoverable"
"Wolverhampton City Council","http://opendatacommunities.org/id/metropolitan-district-council/wolverhampton","HR Advice","Bradley Environmental Consultant Limited","Training Expenses","-400.00","R1650","01/04/15","All VAT recoverable"
"Wolverhampton City Council","http://opendatacommunities.org/id/metropolitan-district-council/wolverhampton","Children in Need & Child Protection","Blue Group Interntl Limited T/A Bluecare","Agency Staff","45.00","R1100","01/04/15","All VAT recoverable"
"Wolverhampton City Council","http://opendatacommunities.org/id/metropolitan-district-council/wolverhampton","Environmental Maintenance","Bridge Security Vehicle Tracking Limited","Vehicle Maintenance - Spare Parts","290.00","R3009","01/04/15","All VAT recoverable"
"Wolverhampton City Council","http://opendatacommunities.org/id/metropolitan-district-council/wolverhampton","Culture Arts & Heritage","Conservation By Design Limited","Equipment - Purchase","45.00","R4000","01/04/15","All VAT recoverable"
"Wolverhampton City Council","http://opendatacommunities.org/id/metropolitan-district-council/wolverhampton","Looked After Children","Capita Resourcing Limited","Agency Staff","731.50","R1100","01/04/15","All VAT recoverable"
"Wolverhampton City Council","http://opendatacommunities.org/id/metropolitan-district-council/wolverhampton","","City Demolition Birmingham Limited","Construction and Conversion","14,355.28","C1100","01/04/15","All VAT recoverable"
"Wolverhampton City Council","http://opendatacommunities.org/id/metropolitan-district-council/wolverhampton","Children in Need & Child Protection","Blue Group Interntl Limited T/A Bluecare","Agency Staff","20.25","R1100","01/04/15","All VAT recoverable"
"Wolverhampton City Council","http://opendatacommunities.org/id/metropolitan-district-council/wolverhampton","HR Advice","City Of Wolverhampton College","Training Expenses","180.00","R1650","01/04/15","All VAT recoverable"
"Wolverhampton City Council","http://opendatacommunities.org/id/metropolitan-district-council/wolverhampton","HR Advice","City Of Wolverhampton College","Training Expenses","600.00","R1650","01/04/15","All VAT recoverable"
"Wolverhampton City Council","http://opendatacommunities.org/id/metropolitan-district-council/wolverhampton","HR Advice","City Of Wolverhampton College","Training Expenses","300.00","R1650","01/04/15","All VAT recoverable"
"Wolverhampton City Council","http://opendatacommunities.org/id/metropolitan-district-council/wolverhampton","Children in Need & Child Protection","Capita Resourcing Limited","Agency Staff","1,193.25","R1100","01/04/15","All VAT recoverable"
"Wolverhampton City Council","http://opendatacommunities.org/id/metropolitan-district-council/wolverhampton","Looked After Children","Blue Group Interntl Limited T/A Bluecare","Agency Staff","6.30","R1100","01/04/15","All VAT recoverable"
"Wolverhampton City Council","http://opendatacommunities.org/id/metropolitan-district-council/wolverhampton","Children in Need & Child Protection","Blue Group Interntl Limited T/A Bluecare","Agency Staff","104.85","R1100","01/04/15","All VAT recoverable"
"Wolverhampton City Council","http://opendatacommunities.org/id/metropolitan-district-council/wolverhampton","Children in Need & Child Protection","Blue Group Interntl Limited T/A Bluecare","Agency Staff","11.70","R1100","01/04/15","All VAT recoverable"
"Wolverhampton City Council","http://opendatacommunities.org/id/metropolitan-district-council/wolverhampton","Children in Need & Child Protection","Blue Group Interntl Limited T/A Bluecare","Agency Staff","92.50","R1100","01/04/15","All VAT recoverable"
"Wolverhampton City Council","http://opendatacommunities.org/id/metropolitan-district-council/wolverhampton","Children in Need & Child Protection","Blue Group Interntl Limited T/A Bluecare","Agency Staff","800.00","R1100","01/04/15","All VAT recoverable"
"Wolverhampton City Council","http://opendatacommunities.org/id/metropolitan-district-council/wolverhampton","Children in Need & Child Protection","Blue Group Interntl Limited T/A Bluecare","Agency Staff","351.50","R1100","01/04/15","All VAT recoverable"
"Wolverhampton City Council","http://opendatacommunities.org/id/metropolitan-district-council/wolverhampton","School Planning & Resources","MIR Sheward Musical Instrument repairs","Equipment - R & M","200.00","R4003","01/04/15","All VAT recoverable"
"Wolverhampton City Council","http://opendatacommunities.org/id/metropolitan-district-council/wolverhampton","Children in Need & Child Protection","Blue Group Interntl Limited T/A Bluecare","Agency Staff","10.35","R1100","01/04/15","All VAT recoverable"
"Wolverhampton City Council","http://opendatacommunities.org/id/metropolitan-district-council/wolverhampton","Children in Need & Child Protection","Blue Group Interntl Limited T/A Bluecare","Agency Staff","555.00","R1100","01/04/15","All VAT recoverable"
"Wolverhampton City Council","http://opendatacommunities.org/id/metropolitan-district-council/wolverhampton","Children in Need & Child Protection","Blue Group Interntl Limited T/A Bluecare","Agency Staff","444.00","R1100","01/04/15","All VAT recoverable"
"Wolverhampton City Council","http://opendatacommunities.org/id/metropolitan-district-council/wolverhampton","Children in Need & Child Protection","Blue Group Interntl Limited T/A Bluecare","Agency Staff","555.00","R1100","01/04/15","All VAT recoverable"
"Wolverhampton City Council","http://opendatacommunities.org/id/metropolitan-district-council/wolverhampton","Children in Need & Child Protection","Blue Group Interntl Limited T/A Bluecare","Agency Staff","111.00","R1100","01/04/15","All VAT recoverable"
"Wolverhampton City Council","http://opendatacommunities.org/id/metropolitan-district-council/wolverhampton","Children in Need & Child Protection","Blue Group Interntl Limited T/A Bluecare","Agency Staff","1,369.00","R1100","01/04/15","All VAT recoverable"
"Wolverhampton City Council","http://opendatacommunities.org/id/metropolitan-district-council/wolverhampton","HR Advice","Bradley Environmental Consultant Limited","Training Expenses","400.00","R1650","01/04/15","All VAT recoverable"
"Wolverhampton City Council","http://opendatacommunities.org/id/metropolitan-district-council/wolverhampton","Children in Need & Child Protection","Blue Group Interntl Limited T/A Bluecare","Agency Staff","1,332.00","R1100","01/04/15","All VAT recoverable"
"Wolverhampton City Council","http://opendatacommunities.org/id/metropolitan-district-council/wolverhampton","Children in Need & Child Protection","Blue Group Interntl Limited T/A Bluecare","Agency Staff","1,332.00","R1100","01/04/15","All VAT recoverable"
"Wolverhampton City Council","http://opendatacommunities.org/id/metropolitan-district-council/wolverhampton","Looked After Children","Blue Group Interntl Limited T/A Bluecare","Agency Staff","573.50","R1100","01/04/15","All VAT recoverable"
"Wolverhampton City Council","http://opendatacommunities.org/id/metropolitan-district-council/wolverhampton","Children in Need & Child Protection","Blue Group Interntl Limited T/A Bluecare","Agency Staff","1,184.00","R1100","01/04/15","All VAT recoverable"
"Wolverhampton City Council","http://opendatacommunities.org/id/metropolitan-district-council/wolverhampton","Older People Assessment & Care Management","Blue Group Interntl Limited T/A Bluecare","Agency Staff","1,263.18","R1100","01/04/15","All VAT recoverable"
"Wolverhampton City Council","http://opendatacommunities.org/id/metropolitan-district-council/wolverhampton","Children in Need & Child Protection","Blue Group Interntl Limited T/A Bluecare","Agency Staff","1,369.00","R1100","01/04/15","All VAT recoverable"
"Wolverhampton City Council","http://opendatacommunities.org/id/metropolitan-district-council/wolverhampton","Children in Need & Child Protection","Blue Group Interntl Limited T/A Bluecare","Agency Staff","1,480.00","R1100","01/04/15","All VAT recoverable"
"Wolverhampton City Council","http://opendatacommunities.org/id/metropolitan-district-council/wolverhampton","Children in Need & Child Protection","Blue Group Interntl Limited T/A Bluecare","Agency Staff","1,480.00","R1100","01/04/15","All VAT recoverable"
"Wolverhampton City Council","http://opendatacommunities.org/id/metropolitan-district-council/wolverhampton","Children in Need & Child Protection","Blue Group Interntl Limited T/A Bluecare","Agency Staff","1,480.00","R1100","01/04/15","All VAT recoverable"
"Wolverhampton City Council","http://opendatacommunities.org/id/metropolitan-district-council/wolverhampton","Children in Need & Child Protection","Blue Group Interntl Limited T/A Bluecare","Agency Staff","1,369.00","R1100","01/04/15","All VAT recoverable"
"Wolverhampton City Council","http://opendatacommunities.org/id/metropolitan-district-council/wolverhampton","Schools","Places for People Leisure Management","Use of Leisure Facilities","50.68","R4410","01/04/15","All VAT recoverable"
"Wolverhampton City Council","http://opendatacommunities.org/id/metropolitan-district-council/wolverhampton","Regulatory Services","District Surveyors Assoc Limited (Labc)","Training Expenses","995.00","R1650","01/04/15","All VAT recoverable"
"Wolverhampton City Council","http://opendatacommunities.org/id/metropolitan-district-council/wolverhampton","Community Centres (Corporate Landlord)","BT (Phone Bills)","Fixtures and Fittings - R&M","106.79","R2502","01/04/15","All VAT recoverable"
"Wolverhampton City Council","http://opendatacommunities.org/id/metropolitan-district-council/wolverhampton","Community Centres (Corporate Landlord)","BT (Phone Bills)","Fixtures and Fittings - R&M","20.00","R2502","01/04/15","All VAT recoverable"
"Wolverhampton City Council","http://opendatacommunities.org/id/metropolitan-district-council/wolverhampton","Library Services","BT (Phone Bills)","Services - Security","91.97","R4405","01/04/15","All VAT recoverable"
"Wolverhampton City Council","http://opendatacommunities.org/id/metropolitan-district-council/wolverhampton","Library Services","BT (Phone Bills)","Services - Security","-91.97","R4405","01/04/15","All VAT recoverable"
"Wolverhampton City Council","http://opendatacommunities.org/id/metropolitan-district-council/wolverhampton","Catering","Blue Mountain Foods Limited","Provisions (Resale)","38.00","R4102","01/04/15","All VAT recoverable"
"Wolverhampton City Council","http://opendatacommunities.org/id/metropolitan-district-council/wolverhampton","Library Services","BT (Phone Bills)","Services - Security","71.97","R4405","01/04/15","All VAT recoverable"
"Wolverhampton City Council","http://opendatacommunities.org/id/metropolitan-district-council/wolverhampton","Library Services","BT (Phone Bills)","Services - Security","20.00","R4405","01/04/15","All VAT recoverable"
"Wolverhampton City Council","http://opendatacommunities.org/id/metropolitan-district-council/wolverhampton","Library Services","BT (Phone Bills)","Services - Security","91.97","R4405","01/04/15","All VAT recoverable"
"Wolverhampton City Council","http://opendatacommunities.org/id/metropolitan-district-council/wolverhampton","Looked After Children","Capita Resourcing Limited","Agency Staff","1,156.25","R1100","01/04/15","All VAT recoverable"
"Wolverhampton City Council","http://opendatacommunities.org/id/metropolitan-district-council/wolverhampton","Looked After Children","Capita Resourcing Limited","Agency Staff","1,192.88","R1100","01/04/15","All VAT recoverable"
"Wolverhampton City Council","http://opendatacommunities.org/id/metropolitan-district-council/wolverhampton","Looked After Children","Capita Resourcing Limited","Agency Staff","1,156.25","R1100","01/04/15","All VAT recoverable"
"Wolverhampton City Council","http://opendatacommunities.org/id/metropolitan-district-council/wolverhampton","Looked After Children","Capita Resourcing Limited","Agency Staff","1,156.25","R1100","01/04/15","All VAT recoverable"
"Wolverhampton City Council","http://opendatacommunities.org/id/metropolitan-district-council/wolverhampton","Library Services","BT (Phone Bills)","Services - Security","-91.97","R4405","01/04/15","All VAT recoverable"
"Wolverhampton City Council","http://opendatacommunities.org/id/metropolitan-district-council/wolverhampton","Library Services","BT (Phone Bills)","Services - Security","71.97","R4405","01/04/15","All VAT recoverable"
"Wolverhampton City Council","http://opendatacommunities.org/id/metropolitan-district-council/wolverhampton","Library Services","BT (Phone Bills)","Services - Security","20.00","R4405","01/04/15","All VAT recoverable"
"Wolverhampton City Council","http://opendatacommunities.org/id/metropolitan-district-council/wolverhampton","ICTS","BT (Phone Bills)","Comms - Telephone Rental","-98.28","R4504","01/04/15","All VAT recoverable"
"Wolverhampton City Council","http://opendatacommunities.org/id/metropolitan-district-council/wolverhampton","Bereavement Services","C.Y.Electrical & Cranes Co Limited","R&M - Departmental planned (external)","85.40","R2001","01/04/15","All VAT recoverable"
"Wolverhampton City Council","http://opendatacommunities.org/id/metropolitan-district-council/wolverhampton","Older People Assessment & Care Management","Capita Resourcing Limited","Agency Staff","9.90","R1100","01/04/15","All VAT recoverable"
"Wolverhampton City Council","http://opendatacommunities.org/id/metropolitan-district-council/wolverhampton","Parking Services","Cale Briparc Limited","Equipment - R & M","21.50","R4003","01/04/15","All VAT recoverable"
"Wolverhampton City Council","http://opendatacommunities.org/id/metropolitan-district-council/wolverhampton","","BT Phone Book Advertising","Construction and Conversion","3,385.50","C1100","01/04/15","All VAT recoverable"
"Wolverhampton City Council","http://opendatacommunities.org/id/metropolitan-district-council/wolverhampton","Independent Living Service","Disable Aids (Cannock) Limited","Equipment - R & M","392.13","R4003","01/04/15","All VAT recoverable"
"Wolverhampton City Council","http://opendatacommunities.org/id/metropolitan-district-council/wolverhampton","","Disable Aids (Cannock) Limited","Construction and Conversion","350.00","C1100","01/04/15","All VAT recoverable"
"Wolverhampton City Council","http://opendatacommunities.org/id/metropolitan-district-council/wolverhampton","ICTS","BT (Phone Bills)","Comms - Telephone Rental","13.50","R4504","01/04/15","All VAT recoverable"
"Wolverhampton City Council","http://opendatacommunities.org/id/metropolitan-district-council/wolverhampton","Older People Assessment & Care Management","Capita Resourcing Limited","Agency Staff","782.89","R1100","01/04/15","All VAT recoverable"
"Wolverhampton City Council","http://opendatacommunities.org/id/metropolitan-district-council/wolverhampton","Older People Assessment & Care Management","Capita Resourcing Limited","Agency Staff","1,164.80","R1100","01/04/15","All VAT recoverable"
"Wolverhampton City Council","http://opendatacommunities.org/id/metropolitan-district-council/wolverhampton","Older People Assessment & Care Management","Capita Resourcing Limited","Agency Staff","1,172.00","R1100","01/04/15","All VAT recoverable"
"Wolverhampton City Council","http://opendatacommunities.org/id/metropolitan-district-council/wolverhampton","Children in Need & Child Protection","Capita Resourcing Limited","Agency Staff","378.94","R1100","01/04/15","All VAT recoverable"
"Wolverhampton City Council","http://opendatacommunities.org/id/metropolitan-district-council/wolverhampton","Engineering & Civic Centre","Direct Security Systems (Mids) Limited","Services - Security","595.00","R4405","01/04/15","All VAT recoverable"
"Wolverhampton City Council","http://opendatacommunities.org/id/metropolitan-district-council/wolverhampton","Older People Assessment & Care Management","Capita Resourcing Limited","Agency Staff","5.40","R1100","01/04/15","All VAT recoverable"
"Wolverhampton City Council","http://opendatacommunities.org/id/metropolitan-district-council/wolverhampton","Older People Assessment & Care Management","Capita Resourcing Limited","Agency Staff","9.45","R1100","01/04/15","All VAT recoverable"
"Wolverhampton City Council","http://opendatacommunities.org/id/metropolitan-district-council/wolverhampton","Looked After Children","Capita Resourcing Limited","Agency Staff","112.50","R1100","01/04/15","All VAT recoverable"
"Wolverhampton City Council","http://opendatacommunities.org/id/metropolitan-district-council/wolverhampton","Fleet Services","Dennis Eagle Limited","Equipment - Purchase","38.08","R4000","01/04/15","All VAT recoverable"
"Wolverhampton City Council","http://opendatacommunities.org/id/metropolitan-district-council/wolverhampton","Looked After Children","Capita Resourcing Limited","Agency Staff","115.20","R1100","01/04/15","All VAT recoverable"
"Wolverhampton City Council","http://opendatacommunities.org/id/metropolitan-district-council/wolverhampton","Fleet Services","Dennis Eagle Limited","Equipment - Purchase","15.45","R4000","01/04/15","All VAT recoverable"
"Wolverhampton City Council","http://opendatacommunities.org/id/metropolitan-district-council/wolverhampton","Fleet Services","Dennis Eagle Limited","Equipment - Purchase","40.19","R4000","01/04/15","All VAT recoverable"
"Wolverhampton City Council","http://opendatacommunities.org/id/metropolitan-district-council/wolverhampton","Looked After Children","Capita Resourcing Limited","Agency Staff","70.65","R1100","01/04/15","All VAT recoverable"
"Wolverhampton City Council","http://opendatacommunities.org/id/metropolitan-district-council/wolverhampton","Looked After Children","Capita Resourcing Limited","Agency Staff","117.00","R1100","01/04/15","All VAT recoverable"
"Wolverhampton City Council","http://opendatacommunities.org/id/metropolitan-district-council/wolverhampton","Fleet Services","Dennis Eagle Limited","Equipment - Purchase","221.00","R4000","01/04/15","All VAT recoverable"
"Wolverhampton City Council","http://opendatacommunities.org/id/metropolitan-district-council/wolverhampton","Looked After Children","Capita Resourcing Limited","Agency Staff","117.00","R1100","01/04/15","All VAT recoverable"
"Wolverhampton City Council","http://opendatacommunities.org/id/metropolitan-district-council/wolverhampton","ICTS","BT (Phone Bills)","Comms - Telephone Rental","84.78","R4504","01/04/15","All VAT recoverable"
"Wolverhampton City Council","http://opendatacommunities.org/id/metropolitan-district-council/wolverhampton","Fleet Services","Dennis Eagle Limited","Equipment - Purchase","116.62","R4000","01/04/15","All VAT recoverable"
"Wolverhampton City Council","http://opendatacommunities.org/id/metropolitan-district-council/wolverhampton","Fleet Services","Dennis Eagle Limited","Equipment - Purchase","135.07","R4000","01/04/15","All VAT recoverable"
"Wolverhampton City Council","http://opendatacommunities.org/id/metropolitan-district-council/wolverhampton","Fleet Services","Dennis Eagle Limited","Equipment - Purchase","69.66","R4000","01/04/15","All VAT recoverable"
"Wolverhampton City Council","http://opendatacommunities.org/id/metropolitan-district-council/wolverhampton","Children in Need & Child Protection","Capita Resourcing Limited","Agency Staff","516.00","R1100","01/04/15","All VAT recoverable"
"Wolverhampton City Council","http://opendatacommunities.org/id/metropolitan-district-council/wolverhampton","ICTS","BT (Phone Bills)","Comms - Telephone Rental","89.78","R4504","01/04/15","All VAT recoverable"
"Wolverhampton City Council","http://opendatacommunities.org/id/metropolitan-district-council/wolverhampton","ICTS","BT (Phone Bills)","Comms - Telephone Rental","-103.28","R4504","01/04/15","All VAT recoverable"
"Wolverhampton City Council","http://opendatacommunities.org/id/metropolitan-district-council/wolverhampton","ICTS","BT (Phone Bills)","Comms - Telephone Rental","103.28","R4504","01/04/15","All VAT recoverable"
"Wolverhampton City Council","http://opendatacommunities.org/id/metropolitan-district-council/wolverhampton","Children in Need & Child Protection","Capita Resourcing Limited","Agency Staff","806.25","R1100","01/04/15","All VAT recoverable"
"Wolverhampton City Council","http://opendatacommunities.org/id/metropolitan-district-council/wolverhampton","Social Inclusion & Play Service","Direct Security Systems (Mids) Limited","Services - Security","85.00","R4405","01/04/15","All VAT recoverable"
"Wolverhampton City Council","http://opendatacommunities.org/id/metropolitan-district-council/wolverhampton","Looked After Children","Capita Resourcing Limited","Agency Staff","131.40","R1100","01/04/15","All VAT recoverable"
"Wolverhampton City Council","http://opendatacommunities.org/id/metropolitan-district-council/wolverhampton","Looked After Children","Capita Resourcing Limited","Agency Staff","135.63","R1100","01/04/15","All VAT recoverable"
"Wolverhampton City Council","http://opendatacommunities.org/id/metropolitan-district-council/wolverhampton","ICTS","Dell Corporation/Dell Incorporated","Computing - Purchase of Hardware","1,043.40","R4530","01/04/15","All VAT recoverable"
"Wolverhampton City Council","http://opendatacommunities.org/id/metropolitan-district-council/wolverhampton","Adult Education","Dell Corporation/Dell Incorporated","Computing - Maint Agreements","1,558.00","R4534","01/04/15","All VAT recoverable"
"Wolverhampton City Council","http://opendatacommunities.org/id/metropolitan-district-council/wolverhampton","Older People Assessment & Care Management","Capita Resourcing Limited","Agency Staff","1,087.06","R1100","01/04/15","All VAT recoverable"
"Wolverhampton City Council","http://opendatacommunities.org/id/metropolitan-district-council/wolverhampton","ICTS","BT (Phone Bills)","Comms - Telephone Rental","13.50","R4504","01/04/15","All VAT recoverable"
"Wolverhampton City Council","http://opendatacommunities.org/id/metropolitan-district-council/wolverhampton","Looked After Children","Capita Resourcing Limited","Agency Staff","1,230.32","R1100","01/04/15","All VAT recoverable"
"Wolverhampton City Council","http://opendatacommunities.org/id/metropolitan-district-council/wolverhampton","Estates and Valuations","Capita Resourcing Limited","Agency Staff","2,245.50","R1100","01/04/15","All VAT recoverable"
"Wolverhampton City Council","http://opendatacommunities.org/id/metropolitan-district-council/wolverhampton","ICTS","BT (Phone Bills)","Comms - Telephone Rental","98.28","R4504","01/04/15","All VAT recoverable"
"Wolverhampton City Council","http://opendatacommunities.org/id/metropolitan-district-council/wolverhampton","Looked After Children","Capita Resourcing Limited","Agency Staff","66.60","R1100","01/04/15","All VAT recoverable"
"Wolverhampton City Council","http://opendatacommunities.org/id/metropolitan-district-council/wolverhampton","Children in Need & Child Protection","Capita Resourcing Limited","Agency Staff","290.25","R1100","01/04/15","All VAT recoverable"
"Wolverhampton City Council","http://opendatacommunities.org/id/metropolitan-district-council/wolverhampton","Estates and Valuations","Capita Resourcing Limited","Agency Staff","3,500.00","R1100","01/04/15","All VAT recoverable"
"Wolverhampton City Council","http://opendatacommunities.org/id/metropolitan-district-council/wolverhampton","Looked After Children","Capita Resourcing Limited","Agency Staff","1,447.15","R1100","01/04/15","All VAT recoverable"
"Wolverhampton City Council","http://opendatacommunities.org/id/metropolitan-district-council/wolverhampton","","Canal & River Trust","Construction and Conversion","50,590.00","C1100","01/04/15","All VAT recoverable"
"Wolverhampton City Council","http://opendatacommunities.org/id/metropolitan-district-council/wolverhampton","Looked After Children","Capita Resourcing Limited","Agency Staff","1,462.90","R1100","01/04/15","All VAT recoverable"
"Wolverhampton City Council","http://opendatacommunities.org/id/metropolitan-district-council/wolverhampton","Learning Disability Assessment & Care Management","Capita Resourcing Limited","Agency Staff","1,392.38","R1100","01/04/15","All VAT recoverable"
"Wolverhampton City Council","http://opendatacommunities.org/id/metropolitan-district-council/wolverhampton","Estates and Valuations","Capita Resourcing Limited","Agency Staff","2,000.00","R1100","01/04/15","All VAT recoverable"
"Wolverhampton City Council","http://opendatacommunities.org/id/metropolitan-district-council/wolverhampton","Looked After Children","Capita Resourcing Limited","Agency Staff","1,251.65","R1100","01/04/15","All VAT recoverable"
"Wolverhampton City Council","http://opendatacommunities.org/id/metropolitan-district-council/wolverhampton","Looked After Children","Capita Resourcing Limited","Agency Staff","1,156.25","R1100","01/04/15","All VAT recoverable"
"Wolverhampton City Council","http://opendatacommunities.org/id/metropolitan-district-council/wolverhampton","Looked After Children","Capita Resourcing Limited","Agency Staff","1,232.10","R1100","01/04/15","All VAT recoverable"
"Wolverhampton City Council","http://opendatacommunities.org/id/metropolitan-district-council/wolverhampton","Independent Living Service","Direct Healthcare Services Limited","Equipment - R & M","-78.40","R4003","01/04/15","All VAT recoverable"
"Wolverhampton City Council","http://opendatacommunities.org/id/metropolitan-district-council/wolverhampton","Looked After Children","Capita Resourcing Limited","Agency Staff","1,341.25","R1100","01/04/15","All VAT recoverable"
"Wolverhampton City Council","http://opendatacommunities.org/id/metropolitan-district-council/wolverhampton","Looked After Children","Capita Resourcing Limited","Agency Staff","1,339.05","R1100","01/04/15","All VAT recoverable"
"Wolverhampton City Council","http://opendatacommunities.org/id/metropolitan-district-council/wolverhampton","Looked After Children","Capita Resourcing Limited","Agency Staff","1,305.45","R1100","01/04/15","All VAT recoverable"
"Wolverhampton City Council","http://opendatacommunities.org/id/metropolitan-district-council/wolverhampton","Physical Disabilities Assessment","Capita Resourcing Limited","Agency Staff","1,128.75","R1100","01/04/15","All VAT recoverable"
"Wolverhampton City Council","http://opendatacommunities.org/id/metropolitan-district-council/wolverhampton","Looked After Children","Capita Resourcing Limited","Agency Staff","44.10","R1100","01/04/15","All VAT recoverable"
"Wolverhampton City Council","http://opendatacommunities.org/id/metropolitan-district-council/wolverhampton","","Canal & River Trust","Construction and Conversion","-50,590.00","C1100","01/04/15","All VAT recoverable"
"Wolverhampton City Council","http://opendatacommunities.org/id/metropolitan-district-council/wolverhampton","Older People Assessment & Care Management","Capita Resourcing Limited","Agency Staff","840.26","R1100","01/04/15","All VAT recoverable"
"Wolverhampton City Council","http://opendatacommunities.org/id/metropolitan-district-council/wolverhampton","Learning Disability Assessment & Care Management","Capita Resourcing Limited","Agency Staff","1,027.14","R1100","01/04/15","All VAT recoverable"
"Wolverhampton City Council","http://opendatacommunities.org/id/metropolitan-district-council/wolverhampton","Learning Disability Provider","Capita Resourcing Limited","Agency Staff","-111.51","R1100","01/04/15","All VAT recoverable"
"Wolverhampton City Council","http://opendatacommunities.org/id/metropolitan-district-council/wolverhampton","Looked After Children","Capita Resourcing Limited","Agency Staff","317.65","R1100","01/04/15","All VAT recoverable"
"Wolverhampton City Council","http://opendatacommunities.org/id/metropolitan-district-council/wolverhampton","Learning Disability Provider","Capita Resourcing Limited","Agency Staff","621.27","R1100","01/04/15","All VAT recoverable"
"Wolverhampton City Council","http://opendatacommunities.org/id/metropolitan-district-council/wolverhampton","Learning Disability Provider","Capita Resourcing Limited","Agency Staff","469.94","R1100","01/04/15","All VAT recoverable"
"Wolverhampton City Council","http://opendatacommunities.org/id/metropolitan-district-council/wolverhampton","Learning Disability Provider","Capita Resourcing Limited","Agency Staff","430.11","R1100","01/04/15","All VAT recoverable"
"Wolverhampton City Council","http://opendatacommunities.org/id/metropolitan-district-council/wolverhampton","","Canal & River Trust","Construction and Conversion","50,590.00","C1100","01/04/15","All VAT recoverable"
"Wolverhampton City Council","http://opendatacommunities.org/id/metropolitan-district-council/wolverhampton","Independent Living Service","Direct Healthcare Services Limited","Equipment - R & M","-392.00","R4003","01/04/15","All VAT recoverable"
"Wolverhampton City Council","http://opendatacommunities.org/id/metropolitan-district-council/wolverhampton","Engineering & Civic Centre","DMW Environmental Safety Limited","Services - Fees and Charges","1,425.00","R4401","01/04/15","All VAT recoverable"
"Wolverhampton City Council","http://opendatacommunities.org/id/metropolitan-district-council/wolverhampton","Estates and Valuations","Capita Resourcing Limited","Agency Staff","2,000.00","R1100","01/04/15","All VAT recoverable"
"Wolverhampton City Council","http://opendatacommunities.org/id/metropolitan-district-council/wolverhampton","Older People Assessment & Care Management","Capita Resourcing Limited","Agency Staff","1,125.91","R1100","01/04/15","All VAT recoverable"
"Wolverhampton City Council","http://opendatacommunities.org/id/metropolitan-district-council/wolverhampton","Independent Living Service","Direct Healthcare Services Limited","Equipment - Purchase","2,954.10","R4000","01/04/15","All VAT recoverable"
"Wolverhampton City Council","http://opendatacommunities.org/id/metropolitan-district-council/wolverhampton","Older People Provider Services","Direct Healthcare Services Limited","Equipment - Purchase","1,204.56","R4000","01/04/15","All VAT recoverable"
"Wolverhampton City Council","http://opendatacommunities.org/id/metropolitan-district-council/wolverhampton","Estates and Valuations","Capita Resourcing Limited","Agency Staff","2,500.00","R1100","01/04/15","All VAT recoverable"
"Wolverhampton City Council","http://opendatacommunities.org/id/metropolitan-district-council/wolverhampton","Looked After Children","Capita Resourcing Limited","Agency Staff","1,337.60","R1100","01/04/15","All VAT recoverable"
"Wolverhampton City Council","http://opendatacommunities.org/id/metropolitan-district-council/wolverhampton","Looked After Children","Capita Resourcing Limited","Agency Staff","968.75","R1100","01/04/15","All VAT recoverable"
"Wolverhampton City Council","http://opendatacommunities.org/id/metropolitan-district-council/wolverhampton","Older People Assessment & Care Management","Capita Resourcing Limited","Agency Staff","12.60","R1100","01/04/15","All VAT recoverable"
"Wolverhampton City Council","http://opendatacommunities.org/id/metropolitan-district-council/wolverhampton","Independent Living Service","Direct Healthcare Services Limited","Equipment - R & M","-11.20","R4003","01/04/15","All VAT recoverable"
"Wolverhampton City Council","http://opendatacommunities.org/id/metropolitan-district-council/wolverhampton","Estates and Valuations","Capita Resourcing Limited","Agency Staff","2,500.00","R1100","01/04/15","All VAT recoverable"
"Wolverhampton City Council","http://opendatacommunities.org/id/metropolitan-district-council/wolverhampton","Children in Need & Child Protection","Capita Resourcing Limited","Agency Staff","1,415.25","R1100","01/04/15","All VAT recoverable"
"Wolverhampton City Council","http://opendatacommunities.org/id/metropolitan-district-council/wolverhampton","Older People Assessment & Care Management","Capita Resourcing Limited","Agency Staff","1,098.75","R1100","01/04/15","All VAT recoverable"
"Wolverhampton City Council","http://opendatacommunities.org/id/metropolitan-district-council/wolverhampton","Older People Assessment & Care Management","Capita Resourcing Limited","Agency Staff","1,125.91","R1100","01/04/15","All VAT recoverable"
"Wolverhampton City Council","http://opendatacommunities.org/id/metropolitan-district-council/wolverhampton","Looked After Children","Capita Resourcing Limited","Agency Staff","131.40","R1100","01/04/15","All VAT recoverable"
"Wolverhampton City Council","http://opendatacommunities.org/id/metropolitan-district-council/wolverhampton","Catering","James Lister & Sons Limited","Protective Clothing","274.70","R4200","01/04/15","All VAT recoverable"
"Wolverhampton City Council","http://opendatacommunities.org/id/metropolitan-district-council/wolverhampton","Catering","James Lister & Sons Limited","Protective Clothing","-274.70","R4200","01/04/15","All VAT recoverable"
"Wolverhampton City Council","http://opendatacommunities.org/id/metropolitan-district-council/wolverhampton","Catering","James Lister & Sons Limited","Protective Clothing","274.70","R4200","01/04/15","All VAT recoverable"
"Wolverhampton City Council","http://opendatacommunities.org/id/metropolitan-district-council/wolverhampton","Cleaning & Caretaking Service","James Lister & Sons Limited","Protective Clothing","46.86","R4200","01/04/15","All VAT recoverable"
"Wolverhampton City Council","http://opendatacommunities.org/id/metropolitan-district-council/wolverhampton","Markets","James Lister & Sons Limited","Protective Clothing","21.00","R4200","01/04/15","All VAT recoverable"
"Wolverhampton City Council","http://opendatacommunities.org/id/metropolitan-district-council/wolverhampton","Catering","James Lister & Sons Limited","Protective Clothing","79.80","R4200","01/04/15","All VAT recoverable"
"Wolverhampton City Council","http://opendatacommunities.org/id/metropolitan-district-council/wolverhampton","Markets","James Lister & Sons Limited","Protective Clothing","52.50","R4200","01/04/15","All VAT recoverable"
"Wolverhampton City Council","http://opendatacommunities.org/id/metropolitan-district-council/wolverhampton","Highways Maintenance","James Lister & Sons Limited","Protective Clothing","30.96","R4200","01/04/15","All VAT recoverable"
"Wolverhampton City Council","http://opendatacommunities.org/id/metropolitan-district-council/wolverhampton","Parking Services","James Lister & Sons Limited","Protective Clothing","33.50","R4200","01/04/15","All VAT recoverable"
"Wolverhampton City Council","http://opendatacommunities.org/id/metropolitan-district-council/wolverhampton","Highways Maintenance","James Lister & Sons Limited","Protective Clothing","32.85","R4200","01/04/15","All VAT recoverable"
"Wolverhampton City Council","http://opendatacommunities.org/id/metropolitan-district-council/wolverhampton","Cleaning & Caretaking Service","James Lister & Sons Limited","Protective Clothing","195.25","R4200","01/04/15","All VAT recoverable"
"Wolverhampton City Council","http://opendatacommunities.org/id/metropolitan-district-council/wolverhampton","Independent Living Service","James Lister & Sons Limited","Protective Clothing","17.50","R4200","01/04/15","All VAT recoverable"
"Wolverhampton City Council","http://opendatacommunities.org/id/metropolitan-district-council/wolverhampton","Catering","James Lister & Sons Limited","Protective Clothing","178.05","R4200","01/04/15","All VAT recoverable"
"Wolverhampton City Council","http://opendatacommunities.org/id/metropolitan-district-council/wolverhampton","Catering","James Lister & Sons Limited","Protective Clothing","-178.05","R4200","01/04/15","All VAT recoverable"
"Wolverhampton City Council","http://opendatacommunities.org/id/metropolitan-district-council/wolverhampton","Catering","James Lister & Sons Limited","Protective Clothing","178.05","R4200","01/04/15","All VAT recoverable"
"Wolverhampton City Council","http://opendatacommunities.org/id/metropolitan-district-council/wolverhampton","Fleet Services","James Lister & Sons Limited","Equipment - Purchase","160.09","R4000","01/04/15","All VAT recoverable"
"Wolverhampton City Council","http://opendatacommunities.org/id/metropolitan-district-council/wolverhampton","Fleet Services","James Lister & Sons Limited","Protective Clothing","72.50","R4200","01/04/15","All VAT recoverable"
"Wolverhampton City Council","http://opendatacommunities.org/id/metropolitan-district-council/wolverhampton","Markets","James Lister & Sons Limited","Protective Clothing","14.20","R4200","01/04/15","All VAT recoverable"
"Wolverhampton City Council","http://opendatacommunities.org/id/metropolitan-district-council/wolverhampton","Regulatory Services","James Lister & Sons Limited","Protective Clothing","83.49","R4200","01/04/15","All VAT recoverable"
"Wolverhampton City Council","http://opendatacommunities.org/id/metropolitan-district-council/wolverhampton","Environmental Maintenance","James Lister & Sons Limited","Protective Clothing","79.50","R4200","01/04/15","All VAT recoverable"
"Wolverhampton City Council","http://opendatacommunities.org/id/metropolitan-district-council/wolverhampton","Catering","James Lister & Sons Limited","Protective Clothing","229.80","R4200","01/04/15","All VAT recoverable"
"Wolverhampton City Council","http://opendatacommunities.org/id/metropolitan-district-council/wolverhampton","Catering","James Lister & Sons Limited","Protective Clothing","-229.80","R4200","01/04/15","All VAT recoverable"
"Wolverhampton City Council","http://opendatacommunities.org/id/metropolitan-district-council/wolverhampton","Catering","James Lister & Sons Limited","Protective Clothing","229.80","R4200","01/04/15","All VAT recoverable"
"Wolverhampton City Council","http://opendatacommunities.org/id/metropolitan-district-council/wolverhampton","Engineering & Civic Centre","James Lister & Sons Limited","Protective Clothing","48.30","R4200","01/04/15","All VAT recoverable"
"Wolverhampton City Council","http://opendatacommunities.org/id/metropolitan-district-council/wolverhampton","Regulatory Services","James Lister & Sons Limited","Protective Clothing","180.00","R4200","01/04/15","All VAT recoverable"
"Wolverhampton City Council","http://opendatacommunities.org/id/metropolitan-district-council/wolverhampton","Housing Revenue Account","James Lister & Sons Limited","Protective Clothing","-27.54","R4200","01/04/15","All VAT recoverable"
"Wolverhampton City Council","http://opendatacommunities.org/id/metropolitan-district-council/wolverhampton","Housing Revenue Account","James Lister & Sons Limited","Protective Clothing","27.54","R4200","01/04/15","All VAT recoverable"
"Wolverhampton City Council","http://opendatacommunities.org/id/metropolitan-district-council/wolverhampton","Highways Maintenance","James Lister & Sons Limited","Protective Clothing","5.41","R4200","01/04/15","All VAT recoverable"
"Wolverhampton City Council","http://opendatacommunities.org/id/metropolitan-district-council/wolverhampton","Fleet Services","James Lister & Sons Limited","Protective Clothing","119.80","R4200","01/04/15","All VAT recoverable"
"Wolverhampton City Council","http://opendatacommunities.org/id/metropolitan-district-council/wolverhampton","Cleaning & Caretaking Service","James Lister & Sons Limited","Protective Clothing","240.50","R4200","01/04/15","All VAT recoverable"
"Wolverhampton City Council","http://opendatacommunities.org/id/metropolitan-district-council/wolverhampton","Housing Revenue Account","James Lister & Sons Limited","Protective Clothing","27.54","R4200","01/04/15","All VAT recoverable"
"Wolverhampton City Council","http://opendatacommunities.org/id/metropolitan-district-council/wolverhampton","Fleet Services","James Lister & Sons Limited","Equipment - Purchase","35.00","R4000","01/04/15","All VAT recoverable"
"Wolverhampton City Council","http://opendatacommunities.org/id/metropolitan-district-council/wolverhampton","Fleet Services","James Lister & Sons Limited","Equipment - Purchase","33.59","R4000","01/04/15","All VAT recoverable"
"Wolverhampton City Council","http://opendatacommunities.org/id/metropolitan-district-council/wolverhampton","Fleet Services","James Lister & Sons Limited","Protective Clothing","12.33","R4200","01/04/15","All VAT recoverable"
"Wolverhampton City Council","http://opendatacommunities.org/id/metropolitan-district-council/wolverhampton","Older People Provider Services","James Lister & Sons Limited","Equipment - Purchase","5.13","R4000","01/04/15","All VAT recoverable"
"Wolverhampton City Council","http://opendatacommunities.org/id/metropolitan-district-council/wolverhampton","Older People Provider Services","Johal Dairies Limited","Provisions (Resale)","122.64","R4102","01/04/15","All VAT recoverable"
"Wolverhampton City Council","http://opendatacommunities.org/id/metropolitan-district-council/wolverhampton","","John Bradshaw & Son Limited T/A Bcl","Construction and Conversion","335.36","C1100","01/04/15","All VAT recoverable"
"Wolverhampton City Council","http://opendatacommunities.org/id/metropolitan-district-council/wolverhampton","Children With Disabilities","John Bradshaw & Son Limited T/A Bcl","Furniture","385.68","R4004","01/04/15","All VAT recoverable"
"Wolverhampton City Council","http://opendatacommunities.org/id/metropolitan-district-council/wolverhampton","Enterprise & Skills","John Bradshaw & Son Limited T/A Bcl","Storage","54.00","R4910","01/04/15","All VAT recoverable"
"Wolverhampton City Council","http://opendatacommunities.org/id/metropolitan-district-council/wolverhampton","Enterprise & Skills","John Bradshaw & Son Limited T/A Bcl","Storage","55.80","R4910","01/04/15","All VAT recoverable"
"Wolverhampton City Council","http://opendatacommunities.org/id/metropolitan-district-council/wolverhampton","Enterprise & Skills","John Bradshaw & Son Limited T/A Bcl","Storage","55.40","R4910","01/04/15","All VAT recoverable"
"Wolverhampton City Council","http://opendatacommunities.org/id/metropolitan-district-council/wolverhampton","Enterprise & Skills","John Bradshaw & Son Limited T/A Bcl","Storage","30.60","R4910","01/04/15","All VAT recoverable"
"Wolverhampton City Council","http://opendatacommunities.org/id/metropolitan-district-council/wolverhampton","Cleaning & Caretaking Service","John Bradshaw & Son Limited T/A Bcl","Storage","774.96","R4910","01/04/15","All VAT recoverable"
"Wolverhampton City Council","http://opendatacommunities.org/id/metropolitan-district-council/wolverhampton","School Planning & Resources","John Bradshaw & Son Limited T/A Bcl","R&M - Departmental planned (external)","189.00","R2001","01/04/15","All VAT recoverable"
"Wolverhampton City Council","http://opendatacommunities.org/id/metropolitan-district-council/wolverhampton","Engineering & Civic Centre","John Bradshaw & Son Limited T/A Bcl","Storage","106.08","R4910","01/04/15","All VAT recoverable"
"Wolverhampton City Council","http://opendatacommunities.org/id/metropolitan-district-council/wolverhampton","Fleet Services","Johnston Sweepers Limited","Equipment - Purchase","1.72","R4000","01/04/15","All VAT recoverable"
"Wolverhampton City Council","http://opendatacommunities.org/id/metropolitan-district-council/wolverhampton","Fleet Services","Johnston Sweepers Limited","Equipment - Purchase","84.03","R4000","01/04/15","All VAT recoverable"
"Wolverhampton City Council","http://opendatacommunities.org/id/metropolitan-district-council/wolverhampton","Fleet Services","Johnston Sweepers Limited","Equipment - Purchase","11.32","R4000","01/04/15","All VAT recoverable"
"Wolverhampton City Council","http://opendatacommunities.org/id/metropolitan-district-council/wolverhampton","Fleet Services","Johnston Sweepers Limited","Equipment - Purchase","14.02","R4000","01/04/15","All VAT recoverable"
"Wolverhampton City Council","http://opendatacommunities.org/id/metropolitan-district-council/wolverhampton","Fleet Services","Johnston Sweepers Limited","Equipment - Purchase","1.04","R4000","01/04/15","All VAT recoverable"
"Wolverhampton City Council","http://opendatacommunities.org/id/metropolitan-district-council/wolverhampton","Fleet Services","Johnston Sweepers Limited","Equipment - Purchase","26.50","R4000","01/04/15","All VAT recoverable"
"Wolverhampton City Council","http://opendatacommunities.org/id/metropolitan-district-council/wolverhampton","Fleet Services","Johnston Sweepers Limited","Equipment - Purchase","199.97","R4000","01/04/15","All VAT recoverable"
"Wolverhampton City Council","http://opendatacommunities.org/id/metropolitan-district-council/wolverhampton","Culture Arts & Heritage","Ken Bromley Art Supplies","Equipment - R & M","115.20","R4003","01/04/15","All VAT recoverable"
"Wolverhampton City Council","http://opendatacommunities.org/id/metropolitan-district-council/wolverhampton","Culture Arts & Heritage","Ken Bromley Art Supplies","Equipment - R & M","-115.20","R4003","01/04/15","All VAT recoverable"
"Wolverhampton City Council","http://opendatacommunities.org/id/metropolitan-district-council/wolverhampton","Culture Arts & Heritage","Ken Bromley Art Supplies","Equipment - R & M","115.20","R4003","01/04/15","All VAT recoverable"
"Wolverhampton City Council","http://opendatacommunities.org/id/metropolitan-district-council/wolverhampton","Older People Assessment & Care Management","Konica Minolta Bus.Solutions(UK)Limited.","Photocopier Operating Lease","140.23","R4304","01/04/15","All VAT recoverable"
"Wolverhampton City Council","http://opendatacommunities.org/id/metropolitan-district-council/wolverhampton","Older People Assessment & Care Management","Konica Minolta Bus.Solutions(UK)Limited.","Photocopier Operating Lease","69.87","R4304","01/04/15","All VAT recoverable"
"Wolverhampton City Council","http://opendatacommunities.org/id/metropolitan-district-council/wolverhampton","Adult Education","Konica Minolta Bus.Solutions(UK)Limited.","Photocopier Operating Lease","191.08","R4304","01/04/15","All VAT recoverable"
"Wolverhampton City Council","http://opendatacommunities.org/id/metropolitan-district-council/wolverhampton","Adult Education","Konica Minolta Bus.Solutions(UK)Limited.","Photocopier Operating Lease","141.91","R4304","01/04/15","All VAT recoverable"
"Wolverhampton City Council","http://opendatacommunities.org/id/metropolitan-district-council/wolverhampton","Adult Education","Konica Minolta Bus.Solutions(UK)Limited.","Photocopier Operating Lease","198.41","R4304","01/04/15","All VAT recoverable"
"Wolverhampton City Council","http://opendatacommunities.org/id/metropolitan-district-council/wolverhampton","Youth Offending","Konica Minolta Bus.Solutions(UK)Limited.","Photocopier Operating Lease","145.11","R4304","01/04/15","All VAT recoverable"
"Wolverhampton City Council","http://opendatacommunities.org/id/metropolitan-district-council/wolverhampton","Children in Need & Child Protection","Konica Minolta Bus.Solutions(UK)Limited.","Photocopier Operating Lease","197.76","R4304","01/04/15","All VAT recoverable"
"Wolverhampton City Council","http://opendatacommunities.org/id/metropolitan-district-council/wolverhampton","Youth Offending","Konica Minolta Bus.Solutions(UK)Limited.","Photocopier Operating Lease","145.11","R4304","01/04/15","All VAT recoverable"
"Wolverhampton City Council","http://opendatacommunities.org/id/metropolitan-district-council/wolverhampton","Older People Assessment & Care Management","Konica Minolta Bus.Solutions(UK)Limited.","Photocopier Operating Lease","232.74","R4304","01/04/15","All VAT recoverable"
"Wolverhampton City Council","http://opendatacommunities.org/id/metropolitan-district-council/wolverhampton","ICTS","Konica Minolta Bus.Solutions(UK)Limited.","Photocopier Operating Lease","255.22","R4304","01/04/15","All VAT recoverable"
"Wolverhampton City Council","http://opendatacommunities.org/id/metropolitan-district-council/wolverhampton","Adult Education","Konica Minolta Bus.Solutions(UK)Limited.","Photocopier Operating Lease","181.66","R4304","01/04/15","All VAT recoverable"
"Wolverhampton City Council","http://opendatacommunities.org/id/metropolitan-district-council/wolverhampton","Older People Assessment & Care Management","Konica Minolta Bus.Solutions(UK)Limited.","Photocopier Operating Lease","91.37","R4304","01/04/15","All VAT recoverable"
"Wolverhampton City Council","http://opendatacommunities.org/id/metropolitan-district-council/wolverhampton","Adult Education","Konica Minolta Bus.Solutions(UK)Limited.","Photocopier Operating Lease","127.64","R4304","01/04/15","All VAT recoverable"
"Wolverhampton City Council","http://opendatacommunities.org/id/metropolitan-district-council/wolverhampton","Children in Need & Child Protection","Konica Minolta Bus.Solutions(UK)Limited.","Photocopier Operating Lease","11.67","R4304","01/04/15","All VAT recoverable"
"Wolverhampton City Council","http://opendatacommunities.org/id/metropolitan-district-council/wolverhampton","Adult Education","Konica Minolta Bus.Solutions(UK)Limited.","Photocopier Operating Lease","48.18","R4304","01/04/15","All VAT recoverable"
"Wolverhampton City Council","http://opendatacommunities.org/id/metropolitan-district-council/wolverhampton","Community Safety","Konica Minolta Bus.Solutions(UK)Limited.","Photocopier Operating Lease","141.42","R4304","01/04/15","All VAT recoverable"
"Wolverhampton City Council","http://opendatacommunities.org/id/metropolitan-district-council/wolverhampton","Community Safety","Konica Minolta Bus.Solutions(UK)Limited.","Photocopier Operating Lease","141.42","R4304","01/04/15","All VAT recoverable"
"Wolverhampton City Council","http://opendatacommunities.org/id/metropolitan-district-council/wolverhampton","Adult Education","Konica Minolta Bus.Solutions(UK)Limited.","Photocopier Operating Lease","443.73","R4304","01/04/15","All VAT recoverable"
"Wolverhampton City Council","http://opendatacommunities.org/id/metropolitan-district-council/wolverhampton","Adult Education","Konica Minolta Bus.Solutions(UK)Limited.","Photocopier Operating Lease","487.92","R4304","01/04/15","All VAT recoverable"
"Wolverhampton City Council","http://opendatacommunities.org/id/metropolitan-district-council/wolverhampton","Independent Living Service","Konica Minolta Bus.Solutions(UK)Limited.","Photocopier Operating Lease","33.96","R4304","01/04/15","All VAT recoverable"
"Wolverhampton City Council","http://opendatacommunities.org/id/metropolitan-district-council/wolverhampton","Leisure Services","Konica Minolta Bus.Solutions(UK)Limited.","Photocopier Operating Lease","12.58","R4304","01/04/15","All VAT recoverable"
"Wolverhampton City Council","http://opendatacommunities.org/id/metropolitan-district-council/wolverhampton","Leisure Services","Konica Minolta Bus.Solutions(UK)Limited.","Photocopier Operating Lease","7.77","R4304","01/04/15","All VAT recoverable"
"Wolverhampton City Council","http://opendatacommunities.org/id/metropolitan-district-council/wolverhampton","Childrens Centres & Early Years","Konica Minolta Bus.Solutions(UK)Limited.","Equipment - Hire","-274.89","R4001","01/04/15","All VAT recoverable"
"Wolverhampton City Council","http://opendatacommunities.org/id/metropolitan-district-council/wolverhampton","Childrens Centres & Early Years","Konica Minolta Bus.Solutions(UK)Limited.","Equipment - Hire","-274.89","R4001","01/04/15","All VAT recoverable"
"Wolverhampton City Council","http://opendatacommunities.org/id/metropolitan-district-council/wolverhampton","Childrens Centres & Early Years","Konica Minolta Bus.Solutions(UK)Limited.","Equipment - Hire","-274.89","R4001","01/04/15","All VAT recoverable"
"Wolverhampton City Council","http://opendatacommunities.org/id/metropolitan-district-council/wolverhampton","Youth Services","Konica Minolta Bus.Solutions(UK)Limited.","Photocopier Operating Lease","26.71","R4304","01/04/15","All VAT recoverable"
"Wolverhampton City Council","http://opendatacommunities.org/id/metropolitan-district-council/wolverhampton","Adult Education","Konica Minolta Bus.Solutions(UK)Limited.","Photocopier Operating Lease","45.23","R4304","01/04/15","All VAT recoverable"
"Wolverhampton City Council","http://opendatacommunities.org/id/metropolitan-district-council/wolverhampton","Older People Assessment & Care Management","Konica Minolta Bus.Solutions(UK)Limited.","Photocopier Operating Lease","152.72","R4304","01/04/15","All VAT recoverable"
"Wolverhampton City Council","http://opendatacommunities.org/id/metropolitan-district-council/wolverhampton","Fleet Services","Konica Minolta Bus.Solutions(UK)Limited.","Photocopier Operating Lease","37.14","R4304","01/04/15","All VAT recoverable"
"Wolverhampton City Council","http://opendatacommunities.org/id/metropolitan-district-council/wolverhampton","Adult Education","Konica Minolta Bus.Solutions(UK)Limited.","Photocopier Operating Lease","56.01","R4304","01/04/15","All VAT recoverable"
"Wolverhampton City Council","http://opendatacommunities.org/id/metropolitan-district-council/wolverhampton","Fleet Services","Konica Minolta Bus.Solutions(UK)Limited.","Photocopier Operating Lease","37.14","R4304","01/04/15","All VAT recoverable"
"Wolverhampton City Council","http://opendatacommunities.org/id/metropolitan-district-council/wolverhampton","Adult Education","Konica Minolta Bus.Solutions(UK)Limited.","Photocopier Operating Lease","36.42","R4304","01/04/15","All VAT recoverable"
"Wolverhampton City Council","http://opendatacommunities.org/id/metropolitan-district-council/wolverhampton","Community Recreation","Konica Minolta Bus.Solutions(UK)Limited.","Photocopier Operating Lease","50.55","R4304","01/04/15","All VAT recoverable"
"Wolverhampton City Council","http://opendatacommunities.org/id/metropolitan-district-council/wolverhampton","Youth Services","Konica Minolta Bus.Solutions(UK)Limited.","Photocopier Operating Lease","13.30","R4304","01/04/15","All VAT recoverable"
"Wolverhampton City Council","http://opendatacommunities.org/id/metropolitan-district-council/wolverhampton","Childrens Centres & Early Years","Konica Minolta Bus.Solutions(UK)Limited.","Equipment - Hire","623.90","R4001","01/04/15","All VAT recoverable"
"Wolverhampton City Council","http://opendatacommunities.org/id/metropolitan-district-council/wolverhampton","Childrens Centres & Early Years","Konica Minolta Bus.Solutions(UK)Limited.","Photocopier Operating Lease","59.00","R4304","01/04/15","All VAT recoverable"
"Wolverhampton City Council","http://opendatacommunities.org/id/metropolitan-district-council/wolverhampton","Childrens Centres & Early Years","Konica Minolta Bus.Solutions(UK)Limited.","Equipment - Hire","-219.84","R4001","01/04/15","All VAT recoverable"
"Wolverhampton City Council","http://opendatacommunities.org/id/metropolitan-district-council/wolverhampton","Leisure Services","Konica Minolta Bus.Solutions(UK)Limited.","Photocopier Operating Lease","53.14","R4304","01/04/15","All VAT recoverable"
"Wolverhampton City Council","http://opendatacommunities.org/id/metropolitan-district-council/wolverhampton","Childrens Centres & Early Years","Konica Minolta Bus.Solutions(UK)Limited.","Equipment - Hire","59.91","R4001","01/04/15","All VAT recoverable"
"Wolverhampton City Council","http://opendatacommunities.org/id/metropolitan-district-council/wolverhampton","Childrens Centres & Early Years","Konica Minolta Bus.Solutions(UK)Limited.","Equipment - Hire","274.89","R4001","01/04/15","All VAT recoverable"
"Wolverhampton City Council","http://opendatacommunities.org/id/metropolitan-district-council/wolverhampton","Childrens Centres & Early Years","Konica Minolta Bus.Solutions(UK)Limited.","Equipment - Hire","274.89","R4001","01/04/15","All VAT recoverable"
"Wolverhampton City Council","http://opendatacommunities.org/id/metropolitan-district-council/wolverhampton","Childrens Centres & Early Years","Konica Minolta Bus.Solutions(UK)Limited.","Equipment - Hire","274.89","R4001","01/04/15","All VAT recoverable"
"Wolverhampton City Council","http://opendatacommunities.org/id/metropolitan-district-council/wolverhampton","Childrens Centres & Early Years","Konica Minolta Bus.Solutions(UK)Limited.","Equipment - Hire","274.89","R4001","01/04/15","All VAT recoverable"
"Wolverhampton City Council","http://opendatacommunities.org/id/metropolitan-district-council/wolverhampton","Parking Services","Konica Minolta Bus.Solutions(UK)Limited.","Photocopier Operating Lease","16.20","R4304","01/04/15","All VAT recoverable"
